Workbook

Sheet 聯絡我
B1: 網址: | C1: https://www.gisin.com.tw/
N5: 選擇特休試算方式
T6: <<特休試算方式按官方算法, 會有小數
T7: <<年度特休天數整數化_方式一
T8: <<年度特休天數整數化_方式二
T9: <<可以貼上公司所有員工到職日等資料進行試算
N10: 點擊進入試算

Sheet 勞基法1071121
B1: 法規名稱：勞動基準法 英
B2: 修正日期：民國 107 年 11 月 21 日
B3: 法規類別：行政 ＞ 勞動部 ＞ 勞動條件及就業平等目
B4: 第 一 章 總則
B5: 第 1 條
A6: =IF(LEFT(B5,1)="第",B5,"") -> 第 1 條 | B6: 為規定勞動條件最低標準，保障勞工權益，加強勞雇關係，促進社會與經
A7: =IF(LEFT(B6,1)="第",B6,"") ->  | B7: 濟發展，特制定本法；本法未規定者，適用其他法律之規定。
B8: 雇主與勞工所訂勞動條件，不得低於本法所定之最低標準。
B9: 第 2 條
A10: 第 2 條 | B10: 本法用辭定義如左：
B11: 一、勞工：謂受雇主僱用從事工作獲致工資者。
B12: 二、雇主：謂僱用勞工之事業主、事業經營之負責人或代表事業主處理有
B13: 關勞工事務之人。
B14: 三、工資：謂勞工因工作而獲得之報酬；包括工資、薪金及按計時、計日
B15: 、計月、計件以現金或實物等方式給付之獎金、津貼及其他任何名義
B16: 之經常性給與均屬之。
B17: 四、平均工資：謂計算事由發生之當日前六個月內所得工資總額除以該期
B18: 間之總日數所得之金額。工作未滿六個月者，謂工作期間所得工資總
B19: 額除以工作期間之總日數所得之金額。工資按工作日數、時數或論件
B20: 計算者，其依上述方式計算之平均工資，如少於該期內工資總額除以
B21: 實際工作日數所得金額百分之六十者，以百分之六十計。
B22: 五、事業單位：謂適用本法各業僱用勞工從事工作之機構。
B23: 六、勞動契約：謂約定勞雇關係之契約。
B24: 第 3 條
A25: 第 3 條 | B25: 本法於左列各業適用之：
B26: 一、農、林、漁、牧業。
B27: 二、礦業及土石採取業。
B28: 三、製造業。
B29: 四、營造業。
B30: 五、水電、煤氣業。
B31: 六、運輸、倉儲及通信業。
B32: 七、大眾傳播業。
B33: 八、其他經中央主管機關指定之事業。
B34: 依前項第八款指定時，得就事業之部分工作場所或工作者指定適用。
B35: 本法適用於一切勞雇關係。但因經營型態、管理制度及工作特性等因素適
B36: 用本法確有窒礙難行者，並經中央主管機關指定公告之行業或工作者，不
B37: 適用之。
B38: 前項因窒礙難行而不適用本法者，不得逾第一項第一款至第七款以外勞工
B39: 總數五分之一。
B40: 第 4 條
A41: 第 4 條 | B41: 本法所稱主管機關：在中央為勞動部；在直轄市為直轄市政府；在縣（市
B42: ）為縣（市）政府。
B43: 第 5 條
A44: 第 5 條 | B44: 雇主不得以強暴、脅迫、拘禁或其他非法之方法，強制勞工從事勞動。
B45: 第 6 條
A46: 第 6 條 | B46: 任何人不得介入他人之勞動契約，抽取不法利益。
B47: 第 7 條
A48: 第 7 條 | B48: 雇主應置備勞工名卡，登記勞工之姓名、性別、出生年月日、本籍、教育
B49: 程度、住址、身分證統一號碼、到職年月日、工資、勞工保險投保日期、
B50: 獎懲、傷病及其他必要事項。
B51: 前項勞工名卡，應保管至勞工離職後五年。
B52: 第 8 條
A53: 第 8 條 | B53: 雇主對於僱用之勞工，應預防職業上災害，建立適當之工作環境及福利設
B54: 施。其有關安全衛生及福利事項，依有關法律之規定。
B55: 第 二 章 勞動契約
B56: 第 9 條
A57: 第 9 條 | B57: 勞動契約，分為定期契約及不定期契約。臨時性、短期性、季節性及特定
B58: 性工作得為定期契約；有繼續性工作應為不定期契約。
B59: 定期契約屆滿後，有左列情形之一者，視為不定期契約：
B60: 一、勞工繼續工作而雇主不即表示反對意思者。
B61: 二、雖經另訂新約，惟其前後勞動契約之工作期間超過九十日，前後契約
B62: 間斷期間未超過三十日者。
B63: 前項規定於特定性或季節性之定期工作不適用之。
B64: 第 9-1 條
A65: 第 9-1 條 | B65: 未符合下列規定者，雇主不得與勞工為離職後競業禁止之約定：
B66: 一、雇主有應受保護之正當營業利益。
B67: 二、勞工擔任之職位或職務，能接觸或使用雇主之營業秘密。
B68: 三、競業禁止之期間、區域、職業活動之範圍及就業對象，未逾合理範疇
B69: 。
B70: 四、雇主對勞工因不從事競業行為所受損失有合理補償。
A71: =IF(LEFT(B70,1)="第",B70,"") ->  | B71: 前項第四款所定合理補償，不包括勞工於工作期間所受領之給付。
B72: 違反第一項各款規定之一者，其約定無效。
B73: 離職後競業禁止之期間，最長不得逾二年。逾二年者，縮短為二年。
B74: 第 10 條
A75: 第 10 條 | B75: 定期契約屆滿後或不定期契約因故停止履行後，未滿三個月而訂定新約或
B76: 繼續履行原約時，勞工前後工作年資，應合併計算。
B77: 第 10-1 條
A78: 第 10-1 條 | B78: 雇主調動勞工工作，不得違反勞動契約之約定，並應符合下列原則：
B79: 一、基於企業經營上所必須，且不得有不當動機及目的。但法律另有規定
B80: 者，從其規定。
B81: 二、對勞工之工資及其他勞動條件，未作不利之變更。
B82: 三、調動後工作為勞工體能及技術可勝任。
B83: 四、調動工作地點過遠，雇主應予以必要之協助。
B84: 五、考量勞工及其家庭之生活利益。
B85: 第 11 條
A86: 第 11 條 | B86: 非有左列情事之一者，雇主不得預告勞工終止勞動契約：
B87: 一、歇業或轉讓時。
B88: 二、虧損或業務緊縮時。
B89: 三、不可抗力暫停工作在一個月以上時。
B90: 四、業務性質變更，有減少勞工之必要，又無適當工作可供安置時。
B91: 五、勞工對於所擔任之工作確不能勝任時。
B92: 第 12 條
A93: 第 12 條 | B93: 勞工有左列情形之一者，雇主得不經預告終止契約：
B94: 一、於訂立勞動契約時為虛偽意思表示，使雇主誤信而有受損害之虞者。
B95: 二、對於雇主、雇主家屬、雇主代理人或其他共同工作之勞工，實施暴行
B96: 或有重大侮辱之行為者。
B97: 三、受有期徒刑以上刑之宣告確定，而未諭知緩刑或未准易科罰金者。
B98: 四、違反勞動契約或工作規則，情節重大者。
B99: 五、故意損耗機器、工具、原料、產品，或其他雇主所有物品，或故意洩
B100: 漏雇主技術上、營業上之秘密，致雇主受有損害者。
B101: 六、無正當理由繼續曠工三日，或一個月內曠工達六日者。
B102: 雇主依前項第一款、第二款及第四款至第六款規定終止契約者，應自知悉
B103: 其情形之日起，三十日內為之。
B104: 第 13 條
A105: 第 13 條 | B105: 勞工在第五十條規定之停止工作期間或第五十九條規定之醫療期間，雇主
B106: 不得終止契約。但雇主因天災、事變或其他不可抗力致事業不能繼續，經
B107: 報主管機關核定者，不在此限。
B108: 第 14 條
A109: 第 14 條 | B109: 有下列情形之一者，勞工得不經預告終止契約：
B110: 一、雇主於訂立勞動契約時為虛偽之意思表示，使勞工誤信而有受損害之
B111: 虞者。
B112: 二、雇主、雇主家屬、雇主代理人對於勞工，實施暴行或有重大侮辱之行
B113: 為者。
B114: 三、契約所訂之工作，對於勞工健康有危害之虞，經通知雇主改善而無效
B115: 果者。
B116: 四、雇主、雇主代理人或其他勞工患有法定傳染病，對共同工作之勞工有
B117: 傳染之虞，且重大危害其健康者。
B118: 五、雇主不依勞動契約給付工作報酬，或對於按件計酬之勞工不供給充分
B119: 之工作者。
B120: 六、雇主違反勞動契約或勞工法令，致有損害勞工權益之虞者。
B121: 勞工依前項第一款、第六款規定終止契約者，應自知悉其情形之日起，三
B122: 十日內為之。但雇主有前項第六款所定情形者，勞工得於知悉損害結果之
B123: 日起，三十日內為之。
B124: 有第一項第二款或第四款情形，雇主已將該代理人間之契約終止，或患有
B125: 法定傳染病者依衛生法規已接受治療時，勞工不得終止契約。
B126: 第十七條規定於本條終止契約準用之。
A127: 第十七條規定於本條終止契約準用之。 | B127: 第 15 條
A128: 第 15 條 | B128: 特定性定期契約期限逾三年者，於屆滿三年後，勞工得終止契約。但應於
B129: 三十日前預告雇主。
B130: 不定期契約，勞工終止契約時，應準用第十六條第一項規定期間預告雇主
B131: 。
B132: 第 15-1 條
A133: 第 15-1 條 | B133: 未符合下列規定之一，雇主不得與勞工為最低服務年限之約定：
B134: 一、雇主為勞工進行專業技術培訓，並提供該項培訓費用者。
A135: =IF(LEFT(B134,1)="第",B134,"") ->  | B135: 二、雇主為使勞工遵守最低服務年限之約定，提供其合理補償者。
B136: 前項最低服務年限之約定，應就下列事項綜合考量，不得逾合理範圍：
B137: 一、雇主為勞工進行專業技術培訓之期間及成本。
B138: 二、從事相同或類似職務之勞工，其人力替補可能性。
B139: 三、雇主提供勞工補償之額度及範圍。
B140: 四、其他影響最低服務年限合理性之事項。
B141: 違反前二項規定者，其約定無效。
B142: 勞動契約因不可歸責於勞工之事由而於最低服務年限屆滿前終止者，勞工
B143: 不負違反最低服務年限約定或返還訓練費用之責任。
B144: 第 16 條
A145: 第 16 條 | B145: 雇主依第十一條或第十三條但書規定終止勞動契約者，其預告期間依左列
B146: 各款之規定：
B147: 一、繼續工作三個月以上一年未滿者，於十日前預告之。
B148: 二、繼續工作一年以上三年未滿者，於二十日前預告之。
B149: 三、繼續工作三年以上者，於三十日前預告之。
B150: 勞工於接到前項預告後，為另謀工作得於工作時間請假外出。其請假時數
B151: ，每星期不得超過二日之工作時間，請假期間之工資照給。
B152: 雇主未依第一項規定期間預告而終止契約者，應給付預告期間之工資。
B153: 第 17 條
A154: 第 17 條 | B154: 雇主依前條終止勞動契約者，應依下列規定發給勞工資遣費：
B155: 一、在同一雇主之事業單位繼續工作，每滿一年發給相當於一個月平均工
B156: 資之資遣費。
B157: 二、依前款計算之剩餘月數，或工作未滿一年者，以比例計給之。未滿一
B158: 個月者以一個月計。
B159: 前項所定資遣費，雇主應於終止勞動契約三十日內發給。
B160: 第 18 條
A161: 第 18 條 | B161: 有左列情形之一者，勞工不得向雇主請求加發預告期間工資及資遣費：
B162: 一、依第十二條或第十五條規定終止勞動契約者。
B163: 二、定期勞動契約期滿離職者。
B164: 第 19 條
A165: 第 19 條 | B165: 勞動契約終止時，勞工如請求發給服務證明書，雇主或其代理人不得拒絕
B166: 。
B167: 第 20 條
A168: 第 20 條 | B168: 事業單位改組或轉讓時，除新舊雇主商定留用之勞工外，其餘勞工應依第
B169: 十六條規定期間預告終止契約，並應依第十七條規定發給勞工資遣費。其
B170: 留用勞工之工作年資，應由新雇主繼續予以承認。
B171: 第 三 章 工資
B172: 第 21 條
A173: 第 21 條 | B173: 工資由勞雇雙方議定之。但不得低於基本工資。
B174: 前項基本工資，由中央主管機關設基本工資審議委員會擬訂後，報請行政
B175: 院核定之。
B176: 前項基本工資審議委員會之組織及其審議程序等事項，由中央主管機關另
B177: 以辦法定之。
B178: 第 22 條
A179: 第 22 條 | B179: 工資之給付，應以法定通用貨幣為之。但基於習慣或業務性質，得於勞動
B180: 契約內訂明一部以實物給付之。工資之一部以實物給付時，其實物之作價
B181: 應公平合理，並適合勞工及其家屬之需要。
B182: 工資應全額直接給付勞工。但法令另有規定或勞雇雙方另有約定者，不在
B183: 此限。
B184: 第 23 條
A185: 第 23 條 | B185: 工資之給付，除當事人有特別約定或按月預付者外，每月至少定期發給二
B186: 次，並應提供工資各項目計算方式明細；按件計酬者亦同。
B187: 雇主應置備勞工工資清冊，將發放工資、工資各項目計算方式明細、工資
B188: 總額等事項記入。工資清冊應保存五年。
B189: 第 24 條
A190: 第 24 條 | B190: 雇主延長勞工工作時間者，其延長工作時間之工資，依下列標準加給：
B191: 一、延長工作時間在二小時以內者，按平日每小時工資額加給三分之一以
B192: 上。
B193: 二、再延長工作時間在二小時以內者，按平日每小時工資額加給三分之二
B194: 以上。
B195: 三、依第三十二條第四項規定，延長工作時間者，按平日每小時工資額加
B196: 倍發給。
B197: 雇主使勞工於第三十六條所定休息日工作，工作時間在二小時以內者，其
B198: 工資按平日每小時工資額另再加給一又三分之一以上；工作二小時後再繼
A199: =IF(LEFT(B198,1)="第",B198,"") ->  | B199: 續工作者，按平日每小時工資額另再加給一又三分之二以上。
B200: 第 25 條
... 470 more rows

Sheet 勞基法施行細則1080214
B1: 法規名稱：勞動基準法施行細則 英
B2: 修正日期：民國 108 年 02 月 14 日
B3: 法規類別：行政 ＞ 勞動部 ＞ 勞動條件及就業平等目
B5: 第 一 章 總則
B6: 第 1 條
A7: 第 1 條 | B7: 本細則依勞動基準法(以下簡稱本法)第八十五條規定訂定之。
B8: 第 2 條
A9: 第 2 條 | B9: 依本法第二條第四款計算平均工資時，下列各款期日或期間均不計入：
B10: 一、發生計算事由之當日。
B11: 二、因職業災害尚在醫療中者。
B12: 三、依本法第五十條第二項減半發給工資者。
B13: 四、雇主因天災、事變或其他不可抗力而不能繼續其事業，致勞工未能工
B14: 作者。
B15: 五、依勞工請假規則請普通傷病假者。
B16: 六、依性別工作平等法請生理假、產假、家庭照顧假或安胎休養，致減少
B17: 工資者。
B18: 七、留職停薪者。
B19: 第 3 條
A20: 第 3 條 | B20: 本法第三條第一項第一款至第七款所列各業，適用中華民國行業標準分類
B21: 之規定。
B22: 第 4 條
A23: 第 4 條 | B23: 本法第三條第一項第八款所稱中央主管機關指定之事業及第三項所稱適用
B24: 本法確有窒礙難行者，係指中央主管機關依中華民國行業標準分類之規定
B25: 指定者，並得僅指定各行業中之一部分。
B26: 第 4-1 條
A27: 第 4-1 條 | B27: （刪除）
B28: 第 5 條
A29: 第 5 條 | B29: 勞工工作年資以服務同一事業單位為限，並自受僱當日起算。
B30: 適用本法前已在同一事業單位工作之年資合併計算。
B31: 第 二 章 勞動契約
B32: 第 6 條
A33: 第 6 條 | B33: 本法第九條第一項所稱臨時性、短期性、季節性及特定性工作，依左列規
B34: 定認定之：
B35: 一、臨時性工作：係指無法預期之非繼續性工作，其工作期間在六個月以
B36: 內者。
B37: 二、短期性工作：係指可預期於六個月內完成之非繼續性工作。
B38: 三、季節性工作：係指受季節性原料、材料來源或市場銷售影響之非繼續
B39: 性工作，其工作期間在九個月以內者。
B40: 四、特定性工作：係指可在特定期間完成之非繼續性工作。其工作期間超
B41: 過一年者，應報請主管機關核備。
B42: 第 7 條
A43: 第 7 條 | B43: 勞動契約應依本法有關規定約定下列事項：
B44: 一、工作場所及應從事之工作。
B45: 二、工作開始與終止之時間、休息時間、休假、例假、休息日、請假及輪
B46: 班制之換班。
B47: 三、工資之議定、調整、計算、結算與給付之日期及方法。
B48: 四、勞動契約之訂定、終止及退休。
B49: 五、資遣費、退休金、其他津貼及獎金。
B50: 六、勞工應負擔之膳宿費及工作用具費。
B51: 七、安全衛生。
B52: 八、勞工教育及訓練。
B53: 九、福利。
B54: 十、災害補償及一般傷病補助。
B55: 十一、應遵守之紀律。
B56: 十二、獎懲。
B57: 十三、其他勞資權利義務有關事項。
B58: 第 7-1 條
A59: 第 7-1 條 | B59: 離職後競業禁止之約定，應以書面為之，且應詳細記載本法第九條之一第
B60: 一項第三款及第四款規定之內容，並由雇主與勞工簽章，各執一份。
B61: 第 7-2 條
A62: 第 7-2 條 | B62: 本法第九條之一第一項第三款所為之約定未逾合理範疇，應符合下列規定
B63: ：
B64: 一、競業禁止之期間，不得逾越雇主欲保護之營業秘密或技術資訊之生命
B65: 週期，且最長不得逾二年。
B66: 二、競業禁止之區域，應以原雇主實際營業活動之範圍為限。
B67: 三、競業禁止之職業活動範圍，應具體明確，且與勞工原職業活動範圍相
B68: 同或類似。
B69: 四、競業禁止之就業對象，應具體明確，並以與原雇主之營業活動相同或
B70: 類似，且有競爭關係者為限。
B71: 第 7-3 條
A72: 第 7-3 條 | B72: 本法第九條之一第一項第四款所定之合理補償，應就下列事項綜合考量：
B73: 一、每月補償金額不低於勞工離職時一個月平均工資百分之五十。
B74: 二、補償金額足以維持勞工離職後競業禁止期間之生活所需。
B75: 三、補償金額與勞工遵守競業禁止之期間、區域、職業活動範圍及就業對
B76: 象之範疇所受損失相當。
B77: 四、其他與判斷補償基準合理性有關之事項。
B78: 前項合理補償，應約定離職後一次預為給付或按月給付。
B79: 第 8 條
A80: 第 8 條 | B80: （刪除）
B81: 第 9 條
A82: 第 9 條 | B82: 依本法終止勞動契約時，雇主應即結清工資給付勞工。
B83: 第 三 章 工資
B84: 第 10 條
A85: 第 10 條 | B85: 本法第二條第三款所稱之其他任何名義之經常性給與係指左列各款以外之
B86: 給與。
B87: 一、紅利。
B88: 二、獎金：指年終獎金、競賽獎金、研究發明獎金、特殊功績獎金、久任
B89: 獎金、節約燃料物料獎金及其他非經常性獎金。
B90: 三、春節、端午節、中秋節給與之節金。
B91: 四、醫療補助費、勞工及其子女教育補助費。
B92: 五、勞工直接受自顧客之服務費。
B93: 六、婚喪喜慶由雇主致送之賀禮、慰問金或奠儀等。
B94: 七、職業災害補償費。
B95: 八、勞工保險及雇主以勞工為被保險人加入商業保險支付之保險費。
B96: 九、差旅費、差旅津貼及交際費。
B97: 十、工作服、作業用品及其代金。
B98: 十一、其他經中央主管機關會同中央目的事業主管機關指定者。
B99: 第 11 條
A100: 第 11 條 | B100: 本法第二十一條所稱基本工資，指勞工在正常工作時間內所得之報酬。不
B101: 包括延長工作時間之工資與休息日、休假日及例假工作加給之工資。
B102: 第 12 條
A103: 第 12 條 | B103: 採計件工資之勞工所得基本工資，以每日工作八小時之生產額或工作量換
B104: 算之。
B105: 第 13 條
A106: 第 13 條 | B106: 勞工工作時間每日少於八小時者，除工作規則、勞動契約另有約定或另有
B107: 法令規定者外，其基本工資得按工作時間比例計算之。
B108: 第 14 條
A109: 第 14 條 | B109: （刪除）
B110: 第 14-1 條
A111: 第 14-1 條 | B111: 本法第二十三條所定工資各項目計算方式明細，應包括下列事項：
B112: 一、勞雇雙方議定之工資總額。
B113: 二、工資各項目之給付金額。
B114: 三、依法令規定或勞雇雙方約定，得扣除項目之金額。
B115: 四、實際發給之金額。
B116: 雇主提供之前項明細，得以紙本、電子資料傳輸方式或其他勞工可隨時取
B117: 得及得列印之資料為之。
B118: 第 15 條
A119: 第 15 條 | B119: 本法第二十八條第一項第一款所定積欠之工資，以雇主於歇業、清算或宣
B120: 告破產前六個月內所積欠者為限。
B121: 第 16 條
A122: 第 16 條 | B122: 勞工死亡時，雇主應即結清其工資給付其遺屬。
B123: 前項受領工資之順位準用本法第五十九條第四款之規定。
B124: 第 四 章 工作時間、休息、休假
B125: 第 17 條
A126: 第 17 條 | B126: 本法第三十條所稱正常工作時間跨越二曆日者，其工作時間應合併計算。
B127: 第 18 條
A128: 第 18 條 | B128: 勞工因出差或其他原因於事業場所外從事工作致不易計算工作時間者，以
B129: 平時之工作時間為其工作時間。但其實際工作時間經證明者，不在此限。
B130: 第 19 條
A131: 第 19 條 | B131: 勞工於同一事業單位或同一雇主所屬不同事業場所工作時，應將在各該場
B132: 所之工作時間合併計算，並加計往來於事業場所間所必要之交通時間。
B133: 第 20 條
A134: 第 20 條 | B134: 雇主有下列情形之一者，應即公告周知：
B135: 一、依本法第三十條第二項、第三項或第三十條之一第一項第一款規定變
B136: 更勞工正常工作時間。
B137: 二、依本法第三十條之一第一項第二款或第三十二條第一項、第二項、第
B138: 四項規定延長勞工工作時間。
B139: 三、依本法第三十四條第二項但書規定變更勞工更換班次時之休息時間。
B140: 四、依本法第三十六條第二項或第四項規定調整勞工例假或休息日。
B141: 第 20-1 條
A142: 第 20-1 條 | B142: 本法所定雇主延長勞工工作之時間如下：
B143: 一、每日工作時間超過八小時或每週工作總時數超過四十小時之部分。但
B144: 依本法第三十條第二項、第三項或第三十條之一第一項第一款變更工
B145: 作時間者，為超過變更後工作時間之部分。
B146: 二、勞工於本法第三十六條所定休息日工作之時間。
B147: 第 21 條
A148: 第 21 條 | B148: 本法第三十條第五項所定出勤紀錄，包括以簽到簿、出勤卡、刷卡機、門
B149: 禁卡、生物特徵辨識系統、電腦出勤紀錄系統或其他可資覈實記載出勤時
B150: 間工具所為之紀錄。
B151: 前項出勤紀錄，雇主因勞動檢查之需要或勞工向其申請時，應以書面方式
B152: 提出。
B153: 第 22 條
A154: 第 22 條 | B154: 本法第三十二條第二項但書所定每三個月，以每連續三個月為一週期，依
B155: 曆計算，以勞雇雙方約定之起迄日期認定之。
B156: 本法第三十二條第五項但書所定坑內監視為主之工作範圍如下：
B157: 一、從事排水機之監視工作。
B158: 二、從事壓風機或冷卻設備之監視工作。
B159: 三、從事安全警報裝置之監視工作。
B160: 四、從事生產或營建施工之紀錄及監視工作。
B161: 第 22-1 條
A162: 第 22-1 條 | B162: 本法第三十二條第三項、第三十四條第三項及第三十六條第五項所定雇主
B163: 僱用勞工人數，以同一雇主僱用適用本法之勞工人數計算，包括分支機構
B164: 之僱用人數。
B165: 本法第三十二條第三項、第三十四條第三項及第三十六條第五項所定當地
B166: 主管機關，為雇主之主事務所、主營業所或公務所所在地之直轄市政府或
B167: 縣（市）政府。
B168: 本法第三十二條第三項、第三十四條第三項及第三十六條第五項所定應報
B169: 備查，雇主至遲應於開始實施延長工作時間、變更休息時間或調整例假之
B170: 前一日為之。但因天災、事變或突發事件不及報備查者，應於原因消滅後
B171: 二十四小時內敘明理由為之。
B172: 第 22-2 條
A173: 第 22-2 條 | B173: 本法第三十二條之一所定補休，應依勞工延長工作時間或休息日工作事實
B174: 發生時間先後順序補休。補休之期限逾依第二十四條第二項所約定年度之
B175: 末日者，以該日為期限之末日。
B176: 前項補休期限屆期或契約終止時，發給工資之期限如下：
B177: 一、補休期限屆期：於契約約定之工資給付日發給或於補休期限屆期後三
B178: 十日內發給。
B179: 二、契約終止：依第九條規定發給。
B180: 勞工依本法第三十二條之一主張權利時，雇主如認為其權利不存在，應負
B181: 舉證責任。
B182: 第 22-3 條
A183: 第 22-3 條 | B183: 本法第三十六條第一項、第二項第一款及第二款所定之例假，以每七日為
B184: 一週期，依曆計算。雇主除依同條第四項及第五項規定調整者外，不得使
B185: 勞工連續工作逾六日。
B186: 第 23 條
A187: 第 23 條 | B187: （刪除）
B188: 第 23-1 條
A189: 第 23-1 條 | B189: 本法第三十七條所定休假遇本法第三十六條所定例假及休息日者，應予補
B190: 假。但不包括本法第三十七條指定應放假之日。
B191: 前項補假期日，由勞雇雙方協商排定之。
B192: 勞基法施行細則第 24 條
A193: 第 24 條 | B193: 勞工於符合本法第三十八條第一項所定之特別休假條件時，取得特別休假
B194: 之權利；其計算特別休假之工作年資，應依第五條之規定。
B195: 依本法第三十八條第一項規定給予之特別休假日數，勞工得於勞雇雙方協
B196: 商之下列期間內，行使特別休假權利：
B197: 一、以勞工受僱當日起算，每一週年之期間。但其工作六個月以上一年未
B198: 滿者，為取得特別休假權利後六個月之期間。
B199: 二、每年一月一日至十二月三十一日之期間。
B200: 三、教育單位之學年度、事業單位之會計年度或勞雇雙方約定年度之期間
B201: 。
... 157 more rows

Sheet 問題
B1: 依勞基法第38條給予特別休假 曆年制方式行使特別休假<<施行細則第24條
B2: 現今，沒休完要決算工資，如有零頭時數沒休完，也没給工資如何處理？
B3: 有零頭特休天數如何休?? 會不會變成沒休完或結清特休工資不足呢??
B5: 勞檢如何看待？
B6: 未來勞檢重點 換算後有無給足假
B7: 勞動條件及就業平等司司長謝倩蒨表示，勞基法規定都是以任職滿多久就有多少天特休
B9: 離職時如何決算？
B10: 例如， 7/1到職，滿2年 前後離職，如 6/30離職與7/2離職，特休結算工資天數一樣嗎?
B12: 年度開始可以把大部分特休休完嗎??

Sheet 到職日後強制進位至整數
F1: 輸入到職日<年 月 日 | M1: 輸入特休給假年度 | W1: 原始 | X1: =IF(OR(V4=0,J4=0),0,ROUND(VLOOKUP(IF($V4>$J$5,$J$5,$V4),特休表,2,0)*$T4,5))+IF(OR(V4=0,J4=0),0,VLOOKUP(IF($V4>$J$5,$J$5,$V4-1),特休表,2,0)-ROUND(VLOOKUP(IF($V4>$J$5,$J$5,$V4-1),特休表,2,0)*$T4,5)) -> 30 | AC1: 原始 | AD1: =IF(OR(V4=0,J4=0),0,ROUND(VLOOKUP(IF($V4>$J$5,$J$5,$V4),特休表,2,0)*$T4,5))+IF(OR(V4=0,J4=0),0,VLOOKUP(IF($V4>$J$5,$J$5,$V4-1),特休表,2,0)-ROUND(VLOOKUP(IF($V4>$J$5,$J$5,$V4-1),特休表,2,0)*$T4,5)) -> 30 | AF1: 原始 | AG1: =IF(F2<M2-1,0,1)*ROUND(3-3*IF((MONTH($H$4)-1+(DAY($H$4)-1)/DAY(EOMONTH(($H$4-1),0)))/6>=1,1,(MONTH($H$4)-1+(DAY($H$4)-1)/DAY(EOMONTH(($H$4-1),0)))/6),4) -> 0.00000 | AM1: 滿半年有特休 到職日期間
C2: 到職 | D2: 特休 | F2: 80年 | H2: 3月 | J2: 20日 | M2: 109年 | N2: 12月 | O2: 31日 | R2: 按比例試算(四捨五入至小數第二位) | Z2: A+B+C | AB2: 天數整數化試算(強制進位至整數) | AF2: 滿半年(未滿一年期間)
C3: 年資 | D3: 日數 | F3: 留職停薪天數 | H3: 到職日 | J3: 年資_年 | M3: 年資計算日期 | R3: 得特休_X+C | T3: 特休比例 | V3: 到職周年 | X3: 年度特休_X | Z3: 曆年年度 | AB3: 到職日前_A | AD3: 到職日後_B | AF3: =$M$2&"年度" -> 109年度 | AG3: =$M$2&"年 1/1前 " -> 109年 1/1前 | AH3: =$M$2&"年 1/1後" -> 109年 1/1後 | AI3: =$M$2+1&" 年前" -> 110 年前 | AJ3: =$M$2+1&" 年後" -> 110 年後 | AM3: =DATE($M$2+1911-1,1,1) -> 2019-01-01 | AN3: =DATE($M$2+1911,1,1) -> 2020-01-01
C4: 0 | D4: 0 | H4: =DATE(F2+1911,H2,J2)+F4 -> 1991-03-20 | J4: =IF(OR($H4=0,$H4>$M$4),0,DATEDIF($H4+$G4,$M$4+1,"Y")) -> 28 | M4: 2019-12-31 | R4: =X4+AF4 -> 30.00 | T4: =1-(MONTH(H4)-1+(DAY(H4)-1)/DAY(EOMONTH((H4-1),0)))/12 -> 0.782 | V4: =IF($H4=0,0,DATEDIF($H4+$G4,DATE(M2+1911,MONTH(H4),DAY(H4)),"Y")) -> 29 | X4: =IF(OR(V4=0,J4=0),0,ROUND(VLOOKUP(IF($V4>$J$5,$J$5,$V4),特休表,2,0)*$T4,2))+IF(OR(V4=0,J4=0),0,VLOOKUP(IF($V4>$J$5,$J$5,$V4-1),特休表,2,0)-ROUND(VLOOKUP(IF($V4>$J$5,$J$5,$V4-1),特休表,2,0)*$T4,2)) -> 30.00 | Z4: =IF(H4=0,0,AB4+AD4+AF4) -> 30 | AB4: =IF(V4=0,0,VLOOKUP(IF($V4>$J$5,$J$5,$V4-1),特休表,2,0)-ROUNDUP(VLOOKUP(IF(($V4-1)>$J$5,$J$5,($V4-1)),特休表,2,0)*$T4,0)) -> 6 | AD4: =ROUNDUP(VLOOKUP(($V$4),特休表,2)*T4,0) -> 24 | AF4: =IF(AND(H4>=$AM$4,H4<=$AN$3),3,AH4+AI4) -> 0 | AG4: =IF(AH4=0,0,3-$AH$4) -> 0 | AH4: =IF(AND($H$4>$AM$3,$H$4<$AM$4),ROUND(3*(MONTH($H$4)-1+(DAY($H$4)-1)/DAY(EOMONTH(($H$4-1),0)))/6,2),0) -> 0 | AI4: =IF(AND($H4>$AN$3,$H4<$AN$4),3-ROUND(3*(MONTH($H4)-1+(DAY($H4)-1)/DAY(EOMONTH(($H4-1),0)))/6,2),0) -> 0 | AJ4: =IF($AI4=0,0,3-$AI4) -> 0 | AM4: =DATE($M$2+1911-1,7,1) -> 2019-07-01 | AN4: =DATE($M$2+1911,7,1) -> 2020-07-01
C5: 0.5 | D5: 3 | H5: 特休最大年資 | J5: 24 | S5: =T4 -> 0.782 | T5: ="=(1- ("&MONTH(H4)-1&"+"&(DAY(H4)-1)&"/"&DAY(EOMONTH((H4-1),0))&")"&"/12)" -> =(1- (2+19/31)/12) | Z5: 以到職日後的比例為主計算特休天數<<強制進位到整數
C6: 1 | D6: 7 | T6: 為到職日至12/31的比例 | Z6: 到職日前的比例是滿周年天數減到職日後天數 | AF6: 滿半年比例= | AG6: ="("&MONTH(H4)-1&"+"&(DAY(H4)-1)&"/"&DAY(EOMONTH((H4-1),0))&")"&"/6" -> (2+19/31)/6
C7: 2 | D7: 10 | I7: =1-(MONTH(H4)-1+(DAY(H4)-1)/DAY(EOMONTH((H4-1),0)))/12 -> 0.782 | J7: ="=(1- ("&MONTH(H4)-1&"+"&(DAY(H4)-1)&"/"&DAY(EOMONTH((H4-1),0))&")"&"/12)" -> =(1- (2+19/31)/12) | N7: =(MONTH(H4)-1+(DAY(H4)-1)/DAY(EOMONTH((H4-1),0)))/12 -> 0.2177419355 | O7: ="= ("&MONTH(H4)-1&"+"&(DAY(H4)-1)&"/"&DAY(EOMONTH((H4-1),0))&")"&"/12)" -> = (2+19/31)/12) | S7: =(MONTH(H4)-1+(DAY(H4)-1)/DAY(EOMONTH((H4-1),0)))/12 -> 0.218 | T7: ="= ("&MONTH(H4)-1&"+"&(DAY(H4)-1)&"/"&DAY(EOMONTH((H4-1),0))&")"&"/12)" -> = (2+19/31)/12) | V7: 為到職日至12/31的比例 | AF7: 1/1至到職日比例= | AG7: =(MONTH($H$4)-1+(DAY($H$4)-1)/DAY(EOMONTH(($H$4-1),0)))/6 -> 0.44
C8: 3 | D8: 14
C9: 4 | D9: 14 | G9: =DATE(YEAR(N10)-1,H2,J2) -> 2019-03-20 | L9: =DATE($M$2+1911-1,12,31) -> 2019-12-31 | N9: =N10 -> 2020-01-01 | Q9: =DATE(YEAR($G$12)+1,MONTH($H$4),DAY($H$4))-1 -> 2020-03-19 | S9: =DATE(YEAR(N10),H2,J2) -> 2020-03-20 | X9: 年度末 | Z9: 年度初 | AD9: =DATE(YEAR(N10)+1,H2,J2) -> 2021-03-20
C10: 5 | D10: 15 | G10: 到職周年 | I10: 到職日後 | L10: 年度初 | N10: =J12+1 -> 2020-01-01 | P10: 到職日前 | S10: 到職周年 | U10: 到職日後 | W10: =V12 -> 2020-12-31 | Z10: =W10+1 -> 2021-01-01 | AB10: 到職日前 | AE10: 到職周年
C11: 6 | D11: 15 | G11: =IF(V4=0,0,V4-1) -> 28 | H11: 年 | M11: =IF(V4=0,0,VLOOKUP(($V$4-1),特休表,2)) -> 30 | N11: 天 | S11: =V4 -> 29 | T11: 年 | Y11: =VLOOKUP(($V$4),特休表,2) -> 30 | Z11: 天
C12: 7 | D12: 15 | G12: =DATE($M$2+1911-1,MONTH($H$4),DAY($H$4)) -> 2019-03-20 | J12: =DATE($M$2+1911-1,12,31) -> 2019-12-31 | N12: =N10 -> 2020-01-01 | P12: =DATE(YEAR($G$12)+1,MONTH($H$4),DAY($H$4))-1 -> 2020-03-19 | S12: =P12+1 -> 2020-03-20 | V12: =DATE(YEAR($J$12)+1,12,31) -> 2020-12-31 | Z12: =V12+1 -> 2021-01-01 | AB12: =DATE(YEAR($G$12)+2,MONTH($H$4),DAY($H$4))-1 -> 2021-03-19
C13: 8 | D13: 15 | I13: 比例 | J13: =$T$4 -> 0.782 | O13: 比例 | P13: =(1-$J$13) -> 0.218 | U13: 比例 | V13: =$T$4 -> 0.782 | AA13: 比例 | AB13: =(1-$J$13) -> 0.218
C14: 9 | D14: 15 | H14: 特休 | I14: =M11 -> 30 | J14: x | K14: =J13 -> 0.782 | L14: = | M14: =I14*K14 -> 23.468 | O14: 特休 | P14: =M11 -> 30 | Q14: - | R14: =K15 -> 24 | T14: 特休 | U14: =Y11 -> 30 | V14: x | W14: =V13 -> 0.782 | X14: = | Y14: =U14*W14 -> 23.468 | AA14: 特休 | AB14: =Y11 -> 30 | AC14: - | AD14: =W15 -> 24
C15: 10 | D15: 16 | G15: (強制進位) | J15: = | K15: =ROUNDUP(I14*K14,0) -> 24 | O15: = | P15: =M11-K15 -> 6 | S15: 強制進位至整數 | V15: = | W15: =ROUNDUP(U14*W14,0) -> 24 | AA15: = | AB15: =AB14-AD14 -> 6
C16: 11 | D16: 17 | J16: 強制進位至整數 | Q16: = | R16: =P15 -> 6 | S16: + | T16: =W15 -> 24 | U16: = | V16: =P15+W15 -> 30 | X16: 天
C17: 12 | D17: 18 | J17: 使其為整數 | N17: =N10 -> 2020-01-01 | Q17: 曆年制年度特休天數 | W17: =W10 -> 2020-12-31
C18: 13 | D18: 19 | G18: ◎上述試算程式未計算滿半年3天的部分
C19: 14 | D19: 20
C20: 15 | D20: 21 | J20: =I$27 -> 107 | N20: =M27 -> 108 | R20: =Q27 -> 109 | V20: =U27 -> 110 | Z20: =Y27 -> 111 | AD20: =AC27 -> 112
C21: 16 | D21: 22 | F21: 到職日 | H21: =$H$4 -> 1991-03-20 | J21: =K21-1 -> 2018-03-19 | K21: =DATE(I27+1911,$H$2,$J$2) -> 2018-03-20 | N21: =O21-1 -> 2019-03-19 | O21: =DATE(M27+1911,$H$2,$J$2) -> 2019-03-20 | R21: =S21-1 -> 2020-03-19 | S21: =DATE(Q27+1911,$H$2,$J$2) -> 2020-03-20 | V21: =W21-1 -> 2021-03-19 | W21: =DATE(U27+1911,$H$2,$J$2) -> 2021-03-20 | Z21: =AA21-1 -> 2022-03-19 | AA21: =DATE(Y27+1911,$H$2,$J$2) -> 2022-03-20 | AD21: =AE21-1 -> 2023-03-19 | AE21: =DATE(AC27+1911,$H$2,$J$2) -> 2023-03-20
C22: 17 | D22: 23 | F22: 周年制年度 | I22: =IF((K22-1)<0,0,K22-1) -> 滿26周年期間 | K22: =I27-(YEAR($H$4)-1911) -> 滿27周年期間 | O22: =M27-(YEAR($H$4)-1911) -> 滿28周年期間 | S22: =Q27-(YEAR($H$4)-1911) -> 滿29周年期間 | W22: =U27-(YEAR($H$4)-1911) -> 滿30周年期間 | AA22: =Y27-(YEAR($H$4)-1911) -> 滿31周年期間 | AE22: =AA22+1 -> 滿32周年期間
C23: 18 | D23: 24 | F23: 周年制天數 | I23: =IF(ISNA(VLOOKUP((K$22-1),特休表,2,0)),0,VLOOKUP((K$22-1),特休表,2,0)) -> 30 | K23: =IF(ISNA(VLOOKUP(K$22,特休表,2,0)),0,VLOOKUP(K$22,特休表,2,0)) -> 30 | O23: =IF(ISNA(VLOOKUP(O$22,特休表,2,0)),0,VLOOKUP(O$22,特休表,2,0)) -> 30 | S23: =VLOOKUP(S$22,特休表,2,0) -> 30 | W23: =VLOOKUP(W$22,特休表,2,0) -> 30 | AA23: =VLOOKUP(AA$22,特休表,2,0) -> 30 | AE23: =VLOOKUP((AA22+1),特休表,2,0) -> 30
C24: 19 | D24: 25 | G24: 日期 | I24: =DATE(I27+1911,1,1) -> 2018-01-01 | J24: =J21 -> 2018-03-19 | K24: =K21 -> 2018-03-20 | L24: =DATE(I27+1911,12,31) -> 2018-12-31 | M24: =DATE(M27+1911,1,1) -> 2019-01-01 | N24: =N21 -> 2019-03-19 | O24: =O21 -> 2019-03-20 | P24: =DATE(M27+1911,12,31) -> 2019-12-31 | Q24: =DATE(Q27+1911,1,1) -> 2020-01-01 | R24: =R21 -> 2020-03-19 | S24: =S21 -> 2020-03-20 | T24: =DATE(Q27+1911,12,31) -> 2020-12-31 | U24: =DATE(U27+1911,1,1) -> 2021-01-01 | V24: =V21 -> 2021-03-19 | W24: =W21 -> 2021-03-20 | X24: =DATE(U27+1911,12,31) -> 2021-12-31 | Y24: =DATE(Y27+1911,1,1) -> 2022-01-01 | Z24: =Z21 -> 2022-03-19 | AA24: =AA21 -> 2022-03-20 | AB24: =DATE(Y27+1911,12,31) -> 2022-12-31 | AC24: =DATE(AC27+1911,1,1) -> 2023-01-01 | AD24: =AD21 -> 2023-03-19 | AE24: =AE21 -> 2023-03-20 | AF24: =DATE(AC27+1911,12,31) -> 2023-12-31
C25: 20 | D25: 26 | H25: 比例 | I25: =1-$T$4 -> 0.218 | K25: =$T$4 -> 0.782 | M25: =1-$T$4 -> 0.218 | O25: =$T$4 -> 0.782 | Q25: =1-$T$4 -> 0.218 | S25: =$T$4 -> 0.782 | U25: =1-$T$4 -> 0.218 | W25: =$T$4 -> 0.782 | Y25: =1-$T$4 -> 0.218 | AA25: =$T$4 -> 0.782 | AC25: =1-$T$4 -> 0.218 | AE25: =$T$4 -> 0.782
C26: 21 | D26: 27 | F26: 曆年制比例天數 | I26: =IF(ISNA(I23-ROUNDUP(I23*(1-I25),0)),0,I23-ROUNDUP(I23*(1-I25),0)) -> 6 | K26: =IF(ISNA(ROUNDUP(K23*K25,0)),0,ROUNDUP(K23*K25,0)) -> 24 | M26: =K23-K26 -> 6 | O26: =ROUNDUP(O23*O25,0) -> 24 | Q26: =O23-O26 -> 6 | S26: =ROUNDUP(S23*S25,0) -> 24 | U26: =S23-S26 -> 6 | W26: =ROUNDUP(W23*W25,0) -> 24 | Y26: =W23-W26 -> 6 | AA26: =ROUNDUP(AA23*AA25,0) -> 24 | AC26: =AA23-AA26 -> 6 | AE26: =ROUNDUP(AE23*AE25,0) -> 24
C27: 22 | D27: 28 | G27: 曆年制年度 | I27: =M2-2 -> 107 | M27: =I27+1 -> 108 | Q27: =M27+1 -> 109 | U27: =Q27+1 -> 110 | Y27: =U27+1 -> 111 | AC27: =Y27+1 -> 112
C28: 23 | D28: 29 | F28: 曆年制天數 | I28: =I26+K26 -> 30 | M28: =M26+O26 -> 30 | Q28: =Q26+S26 -> 30 | U28: =U26+W26 -> 30 | Y28: =Y26+AA26 -> 30 | AC28: =AC26+AE26 -> 30
C29: 24 | D29: 30 | F29: 曆年制年度 | I29: =I27-$F$2 -> 27 | M29: =M27-$F$2 -> 28 | Q29: =Q27-$F$2 -> 29 | U29: =U27-$F$2 -> 30 | Y29: =Y27-$F$2 -> 31 | AC29: =AC27-$F$2 -> 32
C30: 25 | D30: 30 | I30: 到職日前 | K30: 到職日後 | M30: 到職日前 | O30: 到職日後 | Q30: 到職日前 | S30: 到職日後 | U30: 到職日前 | W30: 到職日後 | Y30: 到職日前 | AA30: 到職日後 | AC30: 到職日前 | AE30: 到職日後
K31: 強制進位至整數 | O31: =$K$31 -> 強制進位至整數 | S31: =$K$31 -> 強制進位至整數 | W31: =$K$31 -> 強制進位至整數 | AA31: =$K$31 -> 強制進位至整數 | AE31: =$K$31 -> 強制進位至整數

Sheet 官方算法_到職日前四捨五入到小數第二位
F1: 輸入到職日<年 月 日 | M1: 輸入特休給假年度 | AA1: 原始 | AB1: =VLOOKUP(IF(($V4-1)>$J$5,$J$5,($V4-1)),特休表,2,0)*$T4 -> 15 | AD1: 原始 | AE1: =VLOOKUP(($V$4),特休表,2)-VLOOKUP(($V$4),特休表,2)*T4 -> 15 | AF1: 原始 | AG1: =IF(F2<M2-1,0,1)*ROUND(3-3*IF((MONTH($H$4)-1+(DAY($H$4)-1)/DAY(EOMONTH(($H$4-1),0)))/6>=1,1,(MONTH($H$4)-1+(DAY($H$4)-1)/DAY(EOMONTH(($H$4-1),0)))/6),4) -> 0 | AM1: 滿半年有特休 到職日期間
C2: 到職 | D2: 特休 | F2: 80年 | H2: 7月 | J2: 1日 | M2: 109 | N2: 12 | O2: 31 | T2: 按比例 | Z2: A+B+C | AB2: 天數試算(四捨五入至小數第二位) | AF2: 滿半年(未滿一年期間)
C3: 年資 | D3: 日數 | F3: 留職停薪 | H3: 到職日 | M3: 年資計算日期 | R3: 得特休_X+C | T3: 特休比例 | V3: 到職周年 | X3: 年度特休_X | Z3: 曆年年度 | AB3: 到職日前_A | AD3: 到職日後_B | AF3: =$M$2&"年度" -> 109年度 | AG3: =$M$2&"年 1/1前 " -> 109年 1/1前 | AH3: =$M$2&"年 1/1後" -> 109年 1/1後 | AI3: =$M$2+1&" 年前" -> 110 年前 | AJ3: =$M$2+1&" 年後" -> 110 年後 | AM3: =DATE($M$2+1911-1,1,1) -> 2019-01-01 | AN3: =DATE($M$2+1911,1,1) -> 2020-01-01
C4: 0 | D4: 0 | H4: =DATE(F2+1911,H2,J2)+F4 -> 1991-07-01 | J4: =IF(OR($H4=0,$H4>$M$4),0,DATEDIF($H4+$G4,$M$4+1,"Y")) -> 29 | M4: =DATE($M$2+11,$N$2,$O$2) -> 2020-12-31 | R4: =$AF$4+$X$4 -> 30.00 | T4: =(MONTH(H4)-1+(DAY(H4)-1)/DAY(EOMONTH((H4-1),0)))/12 -> 0.500 | V4: =IF($H4=0,0,DATEDIF($H4+$G4,DATE(M2+1911,MONTH(H4),DAY(H4)),"Y")) -> 29 | X4: =IF(OR(V4=0,J4=0),0,VLOOKUP(IF($V4>$J$5,$J$5,$V4),特休,2,0)-ROUND(VLOOKUP(IF($V4>$J$5,$J$5,$V4),特休,2,0)*$T4,2))+IF(OR(V4=0,J4=0),0,ROUND(VLOOKUP(IF($V4>$J$5,$J$5,$V4-1),特休,2,0)*$T4,2)) -> 30.00 | Z4: =AD4+AB4+AF4 -> 30.00 | AB4: =ROUND(VLOOKUP(IF(($V4-1)>$J$5,$J$5,($V4-1)),特休表,2,0)*$T4,2) -> 15.00 | AD4: =VLOOKUP(($V$4),特休表,2)-ROUND(VLOOKUP(($V$4),特休表,2)*T4,2) -> 15.00 | AF4: =IF(AND(H4>=$AM$4,H4<=$AN$3),3,AH4+AI4) -> 0 | AG4: =IF(AH4=0,0,3-$AH$4) -> 0 | AH4: =IF(AND($H$4>$AM$3,$H$4<$AM$4),ROUND(3*(MONTH($H$4)-1+(DAY($H$4)-1)/DAY(EOMONTH(($H$4-1),0)))/6,2),0) -> 0.00 | AI4: =IF(AND($H4>$AN$3,$H4<$AN$4),3-ROUND(3*(MONTH($H4)-1+(DAY($H4)-1)/DAY(EOMONTH(($H4-1),0)))/6,2),0) -> 0.00 | AJ4: =IF($AI4=0,0,3-$AI4) -> 0.00 | AM4: =DATE($M$2+1911-1,7,1) -> 2019-07-01 | AN4: =DATE($M$2+1911,7,1) -> 2020-07-01
C5: 0.5 | D5: 3 | H5: 特休最大年資 | J5: 24 | P5: 滿半年 | T5: ="=("&MONTH(H4)-1&"+"&(DAY(H4)-1)&"/"&DAY(EOMONTH((H4-1),0))&")"&"/12" -> =(6+0/30)/12 | Y5: (到職日前四使五入至小數第二位) | Z5: 以到職日前的比例為主計算特休天數
C6: 1 | D6: 7 | T6: 1/1~到職日前一日 | Z6: 到職日後的比例是滿周年天數減到職日前天數 | AF6: 滿半年比例= | AG6: ="("&MONTH(H4)-1&"+"&(DAY(H4)-1)&"/"&DAY(EOMONTH((H4-1),0))&")"&"/6" -> (6+0/30)/6
C7: 2 | D7: 10 | AF7: 1/1至到職日比例= | AG7: =(MONTH($H$4)-1+(DAY($H$4)-1)/DAY(EOMONTH(($H$4-1),0)))/6 -> 1.00
C8: 3 | D8: 14 | N8: 2019-01-01 | R8: 2019-05-14 | Y8: 2019-12-31
C9: 4 | D9: 14 | L9: 年度末 | N9: 年度初 | P9: 2019-05-01 | V9: 2019-06-06 | X9: 年度末 | Z9: 年度初
C10: 5 | D10: 15 | G10: 到職周年 | I10: 到職日後 | L10: 年度初 | N10: =J12+1 -> 2020-01-01 | P10: 到職日前 | S10: 到職周年 | U10: 到職日後 | W10: =V12 -> 2020-12-31 | Z10: =W10+1 -> 2021-01-01 | AB10: 到職日前 | AE10: 到職周年
C11: 6 | D11: 15 | G11: =IF(V4=0,0,V4-1) -> 28 | H11: 年 | M11: =IF(V4=0,0,VLOOKUP(($V$4-1),特休,2)) -> 30 | N11: 天 | S11: =V4 -> 29 | T11: 年 | Y11: =VLOOKUP(($V$4),特休,2) -> 30 | Z11: 天
C12: 7 | D12: 15 | G12: =DATE($M$2+1911-1,MONTH($H$4),DAY($H$4)) -> 2019-07-01 | J12: =DATE($M$2+1911-1,12,31) -> 2019-12-31 | N12: =N10 -> 2020-01-01 | R12: =DATE(YEAR($G$12)+1,MONTH($H$4),DAY($H$4)-1) -> 2020-06-30 | S12: =R12+1 -> 2020-07-01 | V12: =DATE(YEAR($J$12)+1,12,31) -> 2020-12-31 | Z12: =V12+1 -> 2021-01-01 | AB12: =DATE(YEAR($G$12)+2,MONTH($H$4),DAY($H$4)-1) -> 2021-06-30
C13: 8 | D13: 15 | I13: 比例 | J13: =1-$T$4 -> 0.500 | O13: 比例 | P13: =$T$4 -> 0.500 | U13: 比例 | V13: =1-AB13 -> 0.500 | AA13: 比例 | AB13: =$T$4 -> 0.500
C14: 9 | D14: 15 | G14: 滿一年 | I14: 特休 | J14: =M11 -> 30 | K14: － | L14: =$P$15 -> 15.00 | O14: 特休 | P14: =M11 -> 30 | Q14: X | R14: =T4 -> 0.500 | T14: 特休 | U14: =Y11 -> 30 | V14: － | W14: =AB15 -> 15.000 | AA14: 特休 | AB14: =Y11 -> 30 | AC14: X | AD14: =AB13 -> 0.500
C15: 10 | D15: 16 | I15: = | J15: =J14-L14 -> 15.00 | O15: = | P15: =ROUND(P14*R14,2) -> 15.00 | S15: + | U15: =Y11-AB15 -> 15.00 | W15: = | X15: =P15+U15 -> 30.00 | AA15: = | AB15: =ROUND(AB14*AD14,2) -> 15
C16: 11 | D16: 17 | N16: 小數捨去取第二位 | Z16: 小數捨去取第二位
C17: 12 | D17: 18 | G17: ◎上述試算程式未計算滿半年3天的部分
C18: 13 | D18: 19 | J18: =I$25 -> 107 | N18: =M25 -> 108 | R18: =Q25 -> 109 | V18: =U25 -> 110 | Z18: =Y25 -> 111 | AD18: =AC25 -> 112
C19: 14 | D19: 20 | F19: 到職日 | H19: =$H$4 -> 1991-07-01 | J19: =K19-1 -> 2018-06-30 | K19: =DATE(I25+1911,$H$2,$J$2) -> 2018-07-01 | N19: =O19-1 -> 2019-06-30 | O19: =DATE(M25+1911,$H$2,$J$2) -> 2019-07-01 | R19: =S19-1 -> 2020-06-30 | S19: =DATE(Q25+1911,$H$2,$J$2) -> 2020-07-01 | V19: =W19-1 -> 2021-06-30 | W19: =DATE(U25+1911,$H$2,$J$2) -> 2021-07-01 | Z19: =AA19-1 -> 2022-06-30 | AA19: =DATE(Y25+1911,$H$2,$J$2) -> 2022-07-01 | AD19: =AE19-1 -> 2023-06-30 | AE19: =DATE(AC25+1911,$H$2,$J$2) -> 2023-07-01
C20: 15 | D20: 21 | F20: 周年制年度 | K20: =I25-(YEAR($H$4)-1911) -> 滿27周年期間 | O20: =M25-(YEAR($H$4)-1911) -> 滿28周年期間 | S20: =Q25-(YEAR($H$4)-1911) -> 滿29周年期間 | W20: =U25-(YEAR($H$4)-1911) -> 滿30周年期間 | AA20: =Y25-(YEAR($H$4)-1911) -> 滿31周年期間
C21: 16 | D21: 22 | F21: 周年制天數 | I21: =VLOOKUP((K$20-1),特休表,2,0) -> 30 | K21: =VLOOKUP(K$20,特休表,2,0) -> 30 | O21: =VLOOKUP(O$20,特休表,2,0) -> 30 | S21: =VLOOKUP(S$20,特休表,2,0) -> 30 | W21: =VLOOKUP(W$20,特休表,2,0) -> 30 | AA21: =VLOOKUP(AA$20,特休表,2,0) -> 30 | AE21: =VLOOKUP((AA20+1),特休表,2,0) -> 30
C22: 17 | D22: 23 | G22: 日期 | I22: =DATE(I25+1911,1,1) -> 2018-01-01 | J22: =J19 -> 2018-06-30 | K22: =K19 -> 2018-07-01 | L22: =DATE(I25+1911,12,31) -> 2018-12-31 | M22: =DATE(M25+1911,1,1) -> 2019-01-01 | N22: =N19 -> 2019-06-30 | O22: =O19 -> 2019-07-01 | P22: =DATE(M25+1911,12,31) -> 2019-12-31 | Q22: =DATE(Q25+1911,1,1) -> 2020-01-01 | R22: =R19 -> 2020-06-30 | S22: =S19 -> 2020-07-01 | T22: =DATE(Q25+1911,12,31) -> 2020-12-31 | U22: =DATE(U25+1911,1,1) -> 2021-01-01 | V22: =V19 -> 2021-06-30 | W22: =W19 -> 2021-07-01 | X22: =DATE(U25+1911,12,31) -> 2021-12-31 | Y22: =DATE(Y25+1911,1,1) -> 2022-01-01 | Z22: =Z19 -> 2022-06-30 | AA22: =AA19 -> 2022-07-01 | AB22: =DATE(Y25+1911,12,31) -> 2022-12-31 | AC22: =DATE(AC25+1911,1,1) -> 2023-01-01 | AD22: =AD19 -> 2023-06-30 | AE22: =AE19 -> 2023-07-01 | AF22: =DATE(AC25+1911,12,31) -> 2023-12-31
C23: 18 | D23: 24 | H23: 比例 | I23: =$T$4 -> 0.500 | K23: =1-I23 -> 0.500 | M23: =$T$4 -> 0.500 | O23: =1-M23 -> 0.500 | Q23: =$T$4 -> 0.500 | S23: =1-Q23 -> 0.500 | U23: =$T$4 -> 0.500 | W23: =1-U23 -> 0.500 | Y23: =$T$4 -> 0.500 | AA23: =1-Y23 -> 0.500 | AC23: =$T$4 -> 0.500 | AE23: =1-AC23 -> 0.500
C24: 19 | D24: 25 | F24: 曆年制比例天數 | I24: =ROUND(I21*I23,2) -> 15 | K24: =K21-M24 -> 15 | M24: =ROUND(K21*M23,2) -> 15 | O24: =O21-Q24 -> 15 | Q24: =ROUND(O21*Q23,2) -> 15 | S24: =S21-U24 -> 15 | U24: =ROUND(S21*U23,2) -> 15 | W24: =W21-Y24 -> 15 | Y24: =ROUND(W21*Y23,2) -> 15 | AA24: =AA21-AC24 -> 15 | AC24: =ROUND(AA21*AC23,2) -> 15 | AE24: =VLOOKUP((AC$27),特休,2)-ROUND(VLOOKUP((AC$27),特休,2)*$T$4,2) -> 15
C25: 20 | D25: 26 | G25: 曆年制年度 | I25: =M2-2 -> 107 | M25: =I25+1 -> 108 | Q25: =M25+1 -> 109 | U25: =Q25+1 -> 110 | Y25: =U25+1 -> 111 | AC25: =Y25+1 -> 112
C26: 21 | D26: 27 | F26: 曆年制天數 | I26: =I24+K24 -> 30 | M26: =M24+O24 -> 30 | Q26: =Q24+S24 -> 30 | U26: =U24+W24 -> 30 | Y26: =Y24+AA24 -> 30 | AC26: =AC24+AE24 -> 30
C27: 22 | D27: 28 | F27: 曆年制年度 | I27: =I25-$F$2 -> 27 | M27: =M25-$F$2 -> 28 | Q27: =Q25-$F$2 -> 29 | U27: =U25-$F$2 -> 30 | Y27: =Y25-$F$2 -> 31 | AC27: =AC25-$F$2 -> 32
C28: 23 | D28: 29 | I28: 到職日前 | K28: 到職日後 | M28: 到職日前 | O28: 到職日後 | Q28: 到職日前 | S28: 到職日後 | U28: 到職日前 | W28: 到職日後 | Y28: 到職日前 | AA28: 到職日後 | AC28: 到職日前 | AE28: 到職日後
C29: 24 | D29: 30
C30: 25 | D30: 30
C31: 26 | D31: 30
C32: 27 | D32: 30
C33: 28 | D33: 30
C34: 29 | D34: 30
C35: 30 | D35: 30
C36: 31 | D36: 30
C37: 32 | D37: 30
C38: 33 | D38: 30
C39: 34 | D39: 30
C40: 35 | D40: 30
C41: 36 | D41: 30
C42: 37 | D42: 30
C43: 38 | D43: 30
C44: 39 | D44: 30
C45: 40 | D45: 30
C46: 41 | D46: 30
C47: 42 | D47: 30
C48: 43 | D48: 30
C49: 44 | D49: 30
C50: 45 | D50: 30
C51: 46 | D51: 30

Sheet 到職日後四捨五入進位至整數
F1: 輸入到職日<年 月 日 | M1: 輸入特休給假年度 | W1: 原始 | X1: =IF(OR(V4=0,J4=0),0,ROUND(VLOOKUP(IF($V4>$J$5,$J$5,$V4),特休表,2,0)*$T4,5))+IF(OR(V4=0,J4=0),0,VLOOKUP(IF($V4>$J$5,$J$5,$V4-1),特休表,2,0)-ROUND(VLOOKUP(IF($V4>$J$5,$J$5,$V4-1),特休表,2,0)*$T4,5)) -> 30 | Z1: 原始 | AA1: =IF(OR(V4=0,J4=0),0,ROUND(VLOOKUP(IF($V4>$J$5,$J$5,$V4),特休表,2,0)*$T4,5))+IF(OR(V4=0,J4=0),0,VLOOKUP(IF($V4>$J$5,$J$5,$V4-1),特休表,2,0)-ROUND(VLOOKUP(IF($V4>$J$5,$J$5,$V4-1),特休表,2,0)*$T4,5)) -> 30 | AB1: 原始 | AC1: =IF(V4=0,0,VLOOKUP(IF($V4>$J$5,$J$5,$V4-1),特休表,2,0)-VLOOKUP(IF(($V4-1)>$J$5,$J$5,($V4-1)),特休表,2,0)*$T4) -> 15.08064516 | AD1: 原始 | AE1: =VLOOKUP(($V$4),特休表,2)*T4 -> 14.91935484 | AF1: 原始 | AG1: =IF(F2<M2-1,0,1)*ROUND(3-3*IF((MONTH($H$4)-1+(DAY($H$4)-1)/DAY(EOMONTH(($H$4-1),0)))/6>=1,1,(MONTH($H$4)-1+(DAY($H$4)-1)/DAY(EOMONTH(($H$4-1),0)))/6),4) -> 0.00000 | AM1: 滿半年有特休 到職日期間
C2: 到職 | D2: 特休 | F2: 80年 | H2: 7月 | J2: 2日 | M2: 109年 | N2: 12月 | O2: 31日 | R2: 按比例試算(四捨五入至小數第二位) | Z2: A+B+C | AB2: 天數整數化試算 (四捨五入至整數) | AF2: 滿半年(未滿一年期間)
C3: 年資 | D3: 日數 | F3: 留職停薪天數 | H3: 到職日 | J3: 年資_年 | M3: 年資計算日期 | R3: 得特休_X+C | T3: 特休比例 | V3: 到職周年 | X3: 年度特休_X | Z3: 曆年年度 | AB3: 到職日前_A | AD3: 到職日後_B | AF3: =$M$2&"年度" -> 109年度 | AG3: =$M$2&"年 1/1前 " -> 109年 1/1前 | AH3: =$M$2&"年 1/1後" -> 109年 1/1後 | AI3: =$M$2+1&" 年前" -> 110 年前 | AJ3: =$M$2+1&" 年後" -> 110 年後 | AM3: =DATE($M$2+1911-1,1,1) -> 2019-01-01 | AN3: =DATE($M$2+1911,1,1) -> 2020-01-01
C4: 0 | D4: 0 | H4: =DATE(F2+1911,H2,J2)+F4 -> 1991-07-02 | J4: =IF(OR($H4=0,$H4>$M$4),0,DATEDIF($H4+$G4,$M$4+1,"Y")) -> 28 | M4: 2019-12-31 | R4: =X4+AF4 -> 30.00 | T4: =1-(MONTH(H4)-1+(DAY(H4)-1)/DAY(EOMONTH((H4-1),0)))/12 -> 0.497 | V4: =IF($H4=0,0,DATEDIF($H4+$G4,DATE(M2+1911,MONTH(H4),DAY(H4)),"Y")) -> 29 | X4: =IF(OR(V4=0,J4=0),0,ROUND(VLOOKUP(IF($V4>$J$5,$J$5,$V4),特休表,2,0)*$T4,2))+IF(OR(V4=0,J4=0),0,VLOOKUP(IF($V4>$J$5,$J$5,$V4-1),特休表,2,0)-ROUND(VLOOKUP(IF($V4>$J$5,$J$5,$V4-1),特休表,2,0)*$T4,2)) -> 30.00 | Z4: =IF(H4=0,0,AB4+AD4+AF4) -> 30 | AB4: =IF(V4=0,0,VLOOKUP(IF($V4>$J$5,$J$5,$V4-1),特休表,2,0)-ROUND(VLOOKUP(IF(($V4-1)>$J$5,$J$5,($V4-1)),特休表,2,0)*$T4,0)) -> 15 | AD4: =ROUND(VLOOKUP(($V$4),特休表,2)*T4,0) -> 15 | AF4: =IF(AND(H4>=$AM$4,H4<=$AN$3),3,AH4+AI4) -> 0 | AG4: =IF(AH4=0,0,3-$AH$4) -> 0 | AH4: =IF(AND($H$4>$AM$3,$H$4<$AM$4),ROUND(3*(MONTH($H$4)-1+(DAY($H$4)-1)/DAY(EOMONTH(($H$4-1),0)))/6,2),0) -> 0 | AI4: =IF(AND($H4>$AN$3,$H4<$AN$4),3-ROUND(3*(MONTH($H4)-1+(DAY($H4)-1)/DAY(EOMONTH(($H4-1),0)))/6,2),0) -> 0 | AJ4: =IF($AI4=0,0,3-$AI4) -> 0 | AM4: =DATE($M$2+1911-1,7,1) -> 2019-07-01 | AN4: =DATE($M$2+1911,7,1) -> 2020-07-01
C5: 0.5 | D5: 3 | H5: 特休最大年資 | J5: 24 | T5: ="=(1- ("&MONTH(H4)-1&"+"&(DAY(H4)-1)&"/"&DAY(EOMONTH((H4-1),0))&")"&"/12)" -> =(1- (6+1/31)/12) | Z5: 以到職日後的比例為主計算特休天數<<四捨五入進位到整數
C6: 1 | D6: 7 | R6: =T4 -> 0.497 | T6: 為到職日至12/31的比例 | Z6: 到職日前的比例是滿周年天數減到職日後天數 | AF6: 滿半年比例= | AG6: ="("&MONTH(H4)-1&"+"&(DAY(H4)-1)&"/"&DAY(EOMONTH((H4-1),0))&")"&"/6" -> (6+1/31)/6
C7: 2 | D7: 10 | AF7: 1/1至到職日比例= | AG7: =(MONTH($H$4)-1+(DAY($H$4)-1)/DAY(EOMONTH(($H$4-1),0)))/6 -> 1.01
C8: 3 | D8: 14
C9: 4 | D9: 14 | G9: =DATE(YEAR(N10)-1,H2,J2) -> 2019-07-02 | L9: =DATE($M$2+1911-1,12,31) -> 2019-12-31 | N9: =N10 -> 2020-01-01 | Q9: =DATE(YEAR($G$12)+1,MONTH($H$4),DAY($H$4))-1 -> 2020-07-01 | S9: =DATE(YEAR(N10),H2,J2) -> 2020-07-02 | X9: 年度末 | Z9: 年度初 | AD9: =DATE(YEAR(N10)+1,H2,J2) -> 2021-07-02
C10: 5 | D10: 15 | G10: 到職周年 | I10: 到職日後 | L10: 年度初 | N10: =J12+1 -> 2020-01-01 | P10: 到職日前 | S10: 到職周年 | U10: 到職日後 | W10: =V12 -> 2020-12-31 | Z10: =W10+1 -> 2021-01-01 | AB10: 到職日前 | AE10: 到職周年
C11: 6 | D11: 15 | G11: =IF(V4=0,0,V4-1) -> 28 | H11: 年 | M11: =IF(V4=0,0,VLOOKUP(($V$4-1),特休表,2)) -> 30 | N11: 天 | S11: =V4 -> 29 | T11: 年 | Y11: =VLOOKUP(($V$4),特休表,2) -> 30 | Z11: 天
C12: 7 | D12: 15 | G12: =DATE($M$2+1911-1,MONTH($H$4),DAY($H$4)) -> 2019-07-02 | J12: =DATE($M$2+1911-1,12,31) -> 2019-12-31 | N12: =N10 -> 2020-01-01 | P12: =DATE(YEAR($G$12)+1,MONTH($H$4),DAY($H$4))-1 -> 2020-07-01 | S12: =P12+1 -> 2020-07-02 | V12: =DATE(YEAR($J$12)+1,12,31) -> 2020-12-31 | Z12: =V12+1 -> 2021-01-01 | AB12: =DATE(YEAR($G$12)+2,MONTH($H$4),DAY($H$4))-1 -> 2021-07-01
C13: 8 | D13: 15 | I13: 比例 | J13: =$T$4 -> 0.497 | O13: 比例 | P13: =(1-$J$13) -> 0.503 | U13: 比例 | V13: =$T$4 -> 0.497 | AA13: 比例 | AB13: =(1-$J$13) -> 0.503
C14: 9 | D14: 15 | H14: 特休 | I14: =M11 -> 30 | J14: x | K14: =J13 -> 0.497 | L14: = | M14: =I14*K14 -> 14.919 | O14: 特休 | P14: =M11 -> 30 | Q14: - | R14: =K15 -> 15 | T14: 特休 | U14: =Y11 -> 30 | V14: x | W14: =V13 -> 0.497 | X14: = | Y14: =U14*W14 -> 14.919 | AA14: 特休 | AB14: =Y11 -> 30 | AC14: - | AD14: =W15 -> 15
C15: 10 | D15: 16 | G15: (四捨五入至整數) | J15: = | K15: =ROUND(I14*K14,0) -> 15 | O15: = | P15: =M11-K15 -> 15 | S15: (四捨五入至整數) | V15: = | W15: =ROUND(U14*W14,0) -> 15 | AA15: = | AB15: =AB14-AD14 -> 15
C16: 11 | D16: 17 | J16: (四捨五入至整數) | Q16: = | R16: =P15 -> 15 | S16: + | T16: =W15 -> 15 | U16: = | V16: =P15+W15 -> 30 | X16: 天
C17: 12 | D17: 18 | J17: 使其為整數 | N17: =N10 -> 2020-01-01 | Q17: 曆年制年度特休天數 | W17: =W10 -> 2020-12-31
C18: 13 | D18: 19 | G18: ◎上述試算程式未計算滿半年3天的部分
C19: 14 | D19: 20
C20: 15 | D20: 21 | J20: =I$27 -> 107 | N20: =M27 -> 108 | R20: =Q27 -> 109 | V20: =U27 -> 110 | Z20: =Y27 -> 111 | AD20: =AC27 -> 112
C21: 16 | D21: 22 | F21: 到職日 | H21: =$H$4 -> 1991-07-02 | J21: =K21-1 -> 2018-07-01 | K21: =DATE(I27+1911,$H$2,$J$2) -> 2018-07-02 | N21: =O21-1 -> 2019-07-01 | O21: =DATE(M27+1911,$H$2,$J$2) -> 2019-07-02 | R21: =S21-1 -> 2020-07-01 | S21: =DATE(Q27+1911,$H$2,$J$2) -> 2020-07-02 | V21: =W21-1 -> 2021-07-01 | W21: =DATE(U27+1911,$H$2,$J$2) -> 2021-07-02 | Z21: =AA21-1 -> 2022-07-01 | AA21: =DATE(Y27+1911,$H$2,$J$2) -> 2022-07-02 | AD21: =AE21-1 -> 2023-07-01 | AE21: =DATE(AC27+1911,$H$2,$J$2) -> 2023-07-02
C22: 17 | D22: 23 | F22: 周年制年度 | I22: =IF((K22-1)<0,0,K22-1) -> 滿26周年期間 | K22: =I27-(YEAR($H$4)-1911) -> 滿27周年期間 | O22: =M27-(YEAR($H$4)-1911) -> 滿28周年期間 | S22: =Q27-(YEAR($H$4)-1911) -> 滿29周年期間 | W22: =U27-(YEAR($H$4)-1911) -> 滿30周年期間 | AA22: =Y27-(YEAR($H$4)-1911) -> 滿31周年期間 | AE22: =AA22+1 -> 滿32周年期間
C23: 18 | D23: 24 | F23: 周年制天數 | I23: =IF(ISNA(VLOOKUP((K$22-1),特休表,2,0)),0,VLOOKUP((K$22-1),特休表,2,0)) -> 30 | K23: =IF(ISNA(VLOOKUP(K$22,特休表,2,0)),0,VLOOKUP(K$22,特休表,2,0)) -> 30 | O23: =IF(ISNA(VLOOKUP(O$22,特休表,2,0)),0,VLOOKUP(O$22,特休表,2,0)) -> 30 | S23: =VLOOKUP(S$22,特休表,2,0) -> 30 | W23: =VLOOKUP(W$22,特休表,2,0) -> 30 | AA23: =VLOOKUP(AA$22,特休表,2,0) -> 30 | AE23: =VLOOKUP((AA22+1),特休表,2,0) -> 30
C24: 19 | D24: 25 | G24: 日期 | I24: =DATE(I27+1911,1,1) -> 2018-01-01 | J24: =J21 -> 2018-07-01 | K24: =K21 -> 2018-07-02 | L24: =DATE(I27+1911,12,31) -> 2018-12-31 | M24: =DATE(M27+1911,1,1) -> 2019-01-01 | N24: =N21 -> 2019-07-01 | O24: =O21 -> 2019-07-02 | P24: =DATE(M27+1911,12,31) -> 2019-12-31 | Q24: =DATE(Q27+1911,1,1) -> 2020-01-01 | R24: =R21 -> 2020-07-01 | S24: =S21 -> 2020-07-02 | T24: =DATE(Q27+1911,12,31) -> 2020-12-31 | U24: =DATE(U27+1911,1,1) -> 2021-01-01 | V24: =V21 -> 2021-07-01 | W24: =W21 -> 2021-07-02 | X24: =DATE(U27+1911,12,31) -> 2021-12-31 | Y24: =DATE(Y27+1911,1,1) -> 2022-01-01 | Z24: =Z21 -> 2022-07-01 | AA24: =AA21 -> 2022-07-02 | AB24: =DATE(Y27+1911,12,31) -> 2022-12-31 | AC24: =DATE(AC27+1911,1,1) -> 2023-01-01 | AD24: =AD21 -> 2023-07-01 | AE24: =AE21 -> 2023-07-02 | AF24: =DATE(AC27+1911,12,31) -> 2023-12-31
C25: 20 | D25: 26 | H25: 比例 | I25: =1-$T$4 -> 0.503 | K25: =$T$4 -> 0.497 | M25: =1-$T$4 -> 0.503 | O25: =$T$4 -> 0.497 | Q25: =1-$T$4 -> 0.503 | S25: =$T$4 -> 0.497 | U25: =1-$T$4 -> 0.503 | W25: =$T$4 -> 0.497 | Y25: =1-$T$4 -> 0.503 | AA25: =$T$4 -> 0.497 | AC25: =1-$T$4 -> 0.503 | AE25: =$T$4 -> 0.497
C26: 21 | D26: 27 | F26: 曆年制比例天數 | I26: =IF(ISNA(I23-ROUND(I23*(1-I25),0)),0,I23-ROUND(I23*(1-I25),0)) -> 15 | K26: =IF(ISNA(ROUND(K23*K25,0)),0,ROUND(K23*K25,0)) -> 15 | M26: =K23-K26 -> 15 | O26: =ROUND(O23*O25,0) -> 15 | Q26: =O23-O26 -> 15 | S26: =ROUND(S23*S25,0) -> 15 | U26: =S23-S26 -> 15 | W26: =ROUND(W23*W25,0) -> 15 | Y26: =W23-W26 -> 15 | AA26: =ROUND(AA23*AA25,0) -> 15 | AC26: =AA23-AA26 -> 15 | AE26: =ROUND(AE23*AE25,0) -> 15
C27: 22 | D27: 28 | G27: 曆年制年度 | I27: =M2-2 -> 107 | M27: =I27+1 -> 108 | Q27: =M27+1 -> 109 | U27: =Q27+1 -> 110 | Y27: =U27+1 -> 111 | AC27: =Y27+1 -> 112
C28: 23 | D28: 29 | F28: 曆年制天數 | I28: =I26+K26 -> 30 | M28: =M26+O26 -> 30 | Q28: =Q26+S26 -> 30 | U28: =U26+W26 -> 30 | Y28: =Y26+AA26 -> 30 | AC28: =AC26+AE26 -> 30
C29: 24 | D29: 30 | F29: 曆年制年度 | I29: =I27-$F$2 -> 27 | M29: =M27-$F$2 -> 28 | Q29: =Q27-$F$2 -> 29 | U29: =U27-$F$2 -> 30 | Y29: =Y27-$F$2 -> 31 | AC29: =AC27-$F$2 -> 32
C30: 25 | D30: 30 | I30: 到職日前 | K30: 到職日後 | M30: 到職日前 | O30: 到職日後 | Q30: 到職日前 | S30: 到職日後 | U30: 到職日前 | W30: 到職日後 | Y30: 到職日前 | AA30: 到職日後 | AC30: 到職日前 | AE30: 到職日後
K31: (四捨五入至整數) | O31: =$K$31 -> (四捨五入至整數) | S31: =$K$31 -> (四捨五入至整數) | W31: =$K$31 -> (四捨五入至整數) | AA31: =$K$31 -> (四捨五入至整數) | AE31: =$K$31 -> (四捨五入至整數)

Sheet 員工資料整理區
B2: 員工編號 | C2: 姓名 | D2: 性別 | E2: 公司 | F2: 部門 | G2: 職稱 | H2: 留職停薪 | I2: 到職日
B3: NO01 | C3: 姓名01 | E3: 碩銘 | F3: 管理部 | I3: 2002-04-01
B4: NO02 | C4: 姓名02 | E4: 碩銘 | F4: 管理部 | I4: 2004-09-07
B5: NO03 | C5: 姓名03 | E5: 碩銘 | F5: 管理部 | I5: 2007-08-16
B6: NO04 | C6: 姓名04 | E6: 碩銘 | F6: 管理部 | I6: 2013-07-01
B7: NO05 | C7: 姓名05 | E7: 碩銘 | F7: 管理部 | I7: 2018-04-16
B8: NO06 | C8: 姓名06 | E8: 碩銘 | F8: 管理部 | I8: 2019-09-16
B9: NO07 | C9: 姓名07 | E9: 碩銘 | F9: 廠務 | I9: 2001-09-01
B10: NO08 | C10: 姓名08 | E10: 碩銘 | F10: 廠務 | I10: 2001-09-01
B11: NO09 | C11: 姓名09 | E11: 碩銘 | F11: 廠務 | I11: 2015-11-02
B12: NO10 | C12: 姓名10 | E12: 碩銘 | F12: 廠務 | I12: 2016-08-15
B13: NO11 | C13: 姓名11 | E13: 碩銘 | F13: 廠務 | I13: 2017-12-04
B14: NO12 | C14: 姓名12 | E14: 碩銘 | F14: 廠務 | I14: 2006-06-20
B15: NO13 | C15: 姓名13 | E15: 碩銘 | F15: 製造部 | I15: 2009-10-29
B16: NO14 | C16: 姓名14 | E16: 碩銘 | F16: 製造部 | I16: 2019-09-16
B17: NO15 | C17: 姓名15 | E17: 碩銘 | F17: 製造部 | I17: 2018-03-01
B18: NO16 | C18: 姓名16 | E18: 碩銘 | F18: 製造部 | I18: 2018-05-14
B19: NO17 | C19: 姓名17 | E19: 碩銘 | F19: 製造部 | I19: 2018-07-15
B20: NO18 | C20: 姓名18 | E20: 碩銘 | F20: 製造部 | I20: 2019-03-05
B21: NO19 | C21: 姓名19 | E21: 碩銘 | F21: 製造部 | I21: 2019-04-15
B22: NO20 | C22: 姓名20 | E22: 碩銘 | F22: 製造部 | I22: 2020-01-06
B23: NO21 | C23: 姓名21 | E23: 碩銘 | F23: 製造部 | I23: 2020-04-17
B24: NO22 | C24: 姓名22 | E24: 碩銘 | F24: 製造部 | I24: 2020-06-18

Sheet 特休試算
T1: 2 | U1: 13 | V1: 15
L2: 留職停薪 | N2: 到職日 | O2: 到職周年 | P2: 年資特休 | Q2: 特休比例 | S2: 滿半年 | T2: 到職日前 | U2: 到職日後 | V2: 年度天數 | X2: 到職日前 | Y2: 到職日後 | Z2: 年度天數 | AA2: 輸入 | AB2: =$L$9&"年度" -> 109年度 | AC2: ="年 1/1前 " -> 年 1/1前 | AD2: ="年度 1/1後" -> 年度 1/1後 | AE2: =$L$9+1&"年度前" -> 110年度前 | AF2: =$L$9+1&"年度後" -> 110年度後
M3: 2020-03-20 | N3: =M3+L3 -> 2020-03-20 | O3: =IF($N3=0,0,DATEDIF($N3+$L3,DATE($L$9+1911,MONTH(N3),DAY(N3))+$L3,"Y")) -> 0 | P3: =IF(O3>24,30,VLOOKUP($O3,特休,2,0)) -> 0 | Q3: =1-(MONTH(N3)-1+(DAY(N3)-1)/DAY(EOMONTH((N3-1),0)))/12 -> 0.78 | R3: =1-Q3 -> 0.22 | S3: =AB3 -> 1.69 | T3: =IF(O3=0,0,VLOOKUP(IF($O3>$N$5,$N$5,$O3-1),特休,2,0)-ROUNDUP(VLOOKUP(IF(($O3-1)>$N$5,$N$5,($O3-1)),特休,2,0)*$Q3,0)) -> 0 | U3: =ROUNDUP(IF($O3=0,0,VLOOKUP(IF($O3>$N$5,$N$5,$O3),特休,2,0)*$Q3),0) -> 0 | V3: =$S3+$T3+$U3+$AA3 -> 1.69 | W3: =$AB3 -> 1.69 | X3: =IF(ISNA(VLOOKUP(IF($O3>$N$5,$N$5,$O3-1),特休,2,0)*(1-$Q3)),0,ROUND(VLOOKUP(IF($O3>$N$5,$N$5,$O3-1),特休,2,0)*(1-$Q3),2)) -> 0.00 | Y3: =IF(ISNA(VLOOKUP(IF($O3>$N$5,$N$5,$O3),特休,2,0)*(1-$Q3)),0,VLOOKUP(IF($O3>$N$5,$N$5,$O3),特休,2,0)-ROUND(VLOOKUP(IF($O3>$N$5,$N$5,$O3),特休,2,0)*(1-$Q3),2)) -> 0.00 | Z3: =$W3+$X3+$Y3+$AA3 -> 1.69 | AB3: =IF(AND($N3>=$AI$12,$N3<=$AJ$11),3,AD3+AE3) -> 1.69 | AC3: =IF(AD3=0,0,3-AD3) -> 0 | AD3: =IF(AND($N3>$AI$11,$N3<$AI$12),ROUND(3*(MONTH($N3)-1+(DAY($N3)-1)/DAY(EOMONTH(($N3-1),0)))/6,2),0) -> 0 | AE3: =IF(AND($N3>$AJ$11,$N3<$AJ$12),3-ROUND(3*(MONTH($N3)-1+(DAY($N3)-1)/DAY(EOMONTH(($N3-1),0)))/6,2),0) -> 1.69 | AF3: =IF($AE3=0,0,3-$AE3) -> 1.31
N5: 24.00 | O5: 特休最大年資 | Y5: =ROUNDUP((7 + 1/31 )/12 * 7,1) -> 4.2 | Z5: =(10 -ROUNDUP( (7 + 1/31 )/12 * 10,1)) -> 4.1
A7: 本試算程式版權屬於李金國顧問所有，歡迎轉載使用，但轉載時請註明出處 | L7: 輸入試算年度 | U7: 留停日數試算 | V7: 開始日期 | W7: 2001-06-01 | X7: 結束日期 | Y7: 2001-07-31 | Z7: 留停天數 | AA7: =IF(OR(W7=0,Y7=0),0,Y7-W7+1) -> 61 | AB7: <<輸入日期試算留停天數
A8: 如優於勞基法,輸入優於法規 | F8: https://www.gisin.com.tw/ | K8: 試算日期 | L8: 年 | M8: 月 | N8: 日 | O8: <<輸入試算年度 | Q8: 特休比例 | AA8: 輸入後再按試算鈕 | AB8: 滿半年(未滿一年期間)
A9: 的天數於 [增加] 欄位 | L9: 109 | M9: 12 | N9: 31 | O9: 周年制 | Q9: 到職日 至 12/31 | R9: 1/1至 到職日 前一日 | S9: 曆年制試算(【到職日後】強制進位至整數) | W9: 曆年制試算_原始比例
A10: 法定 | B10: 到職 | C10: 實際 | D10: 增加 | F10: 員工編號 | G10: 姓名 | H10: 性別 | I10: 公司 | J10: 部門 | K10: 職稱 | L10: 留職停薪 | M10: 到職日 | N10: 到職日 (留職) | O10: 到職周年 | P10: 年資特休 | S10: 滿半年 A | T10: 到職日前 B | U10: 到職日後 C | V10: 年度天數 A+B+C+D | W10: 滿半年 A | X10: 到職日前 B | Y10: 到職日後 C | Z10: 年度天數 A+B+C+D | AA10: 遞延 或 已結清 D | AB10: =$L$9&"年度" -> 109年度 | AC10: =$L$9&"年度 1/1前" -> 109年度 1/1前 | AD10: =$L$9&"年度 1/1後" -> 109年度 1/1後 | AE10: ="到職日後"&$L$9+1&"年度前" -> 到職日後110年度前 | AF10: =$L$9+1&"年度 1/1後" -> 110年度 1/1後 | AI10: 滿半年有特休 到職日期間
A11: 日數 | B11: 年資 | C11: 日數 | D11: 日數 | F11: NO01 | G11: 姓名01 | I11: 碩銘 | J11: 管理部 | M11: 2002-04-01 | N11: 2002-04-01 | O11: 18 | P11: 24 | Q11: 0.75 | R11: 0.25 | S11: 0 | T11: 5 | U11: 18 | V11: 23 | W11: 0.00 | X11: 5.75 | Y11: 18.00 | Z11: 23.75 | AB11: 0 | AC11: 0 | AD11: 0 | AE11: 0 | AF11: 0 | AI11: =DATE($L$9+1911-1,1,1) -> 2019-01-01 | AJ11: =DATE(L9+1911,1,1) -> 2020-01-01
A12: 0 | B12: 0 | C12: 0 | F12: NO02 | G12: 姓名02 | I12: 碩銘 | J12: 管理部 | M12: 2004-09-07 | N12: 2004-09-07 | O12: 16 | P12: 22 | Q12: 0.32 | R12: 0.68 | S12: 0 | T12: 14 | U12: 7 | V12: 21 | W12: 0.00 | X12: 14.35 | Y12: 6.97 | Z12: 21.32 | AB12: 0 | AC12: 0 | AD12: 0 | AE12: 0 | AF12: 0 | AI12: =DATE($L$9+1911-1,7,1) -> 2019-07-01 | AJ12: =DATE(L9+1911,7,1) -> 2020-07-01
A13: 3 | B13: 0.5 | C13: =$A13+$D13 -> 3 | F13: NO03 | G13: 姓名03 | I13: 碩銘 | J13: 管理部 | M13: 2007-08-16 | N13: 2007-08-16 | O13: 13 | P13: 19 | Q13: 0.38 | R13: 0.62 | S13: 0 | T13: 11 | U13: 8 | V13: 19 | W13: 0.00 | X13: 11.23 | Y13: 7.15 | Z13: 18.38 | AB13: 0 | AC13: 0 | AD13: 0 | AE13: 0 | AF13: 0 | AG13: =IF(AND($N13>$AJ$11,$N13<$AJ$12),3-3*(MONTH($N13)-1+(DAY($N13)-1)/DAY(EOMONTH(($N13-1),0)))/6,0) -> 0
A14: 7 | B14: 1 | C14: =$A14+$D14 -> 7 | F14: NO04 | G14: 姓名04 | I14: 碩銘 | J14: 管理部 | M14: 2013-07-01 | N14: 2013-07-01 | O14: 7 | P14: 15 | Q14: 0.50 | R14: 0.50 | S14: 0 | T14: 7 | U14: 8 | V14: 15 | W14: 0.00 | X14: 7.50 | Y14: 7.50 | Z14: 15.00 | AB14: 0 | AC14: 0 | AD14: 0 | AE14: 0 | AF14: 0
A15: 10 | B15: 2 | C15: 10 | F15: NO05 | G15: 姓名05 | I15: 碩銘 | J15: 管理部 | M15: 2018-04-16 | N15: 2018-04-16 | O15: 2 | P15: 10 | Q15: 0.71 | R15: 0.29 | S15: 0 | T15: 2 | U15: 8 | V15: 10 | W15: 0.00 | X15: 2.04 | Y15: 7.08 | Z15: 9.12 | AB15: 0 | AC15: 0 | AD15: 0 | AE15: 0 | AF15: 0
A16: 14 | B16: 3 | C16: 14 | F16: NO06 | G16: 姓名06 | I16: 碩銘 | J16: 管理部 | M16: 2019-09-16 | N16: 2019-09-16 | O16: 1 | P16: 7 | Q16: 0.29 | R16: 0.71 | S16: 3 | T16: 0 | U16: 3 | V16: 6 | W16: 3.00 | X16: 0.00 | Y16: 2.04 | Z16: 5.04 | AB16: 3 | AC16: 0 | AD16: 0 | AE16: 0 | AF16: 0
A17: 14 | B17: 4 | C17: 14 | F17: NO07 | G17: 姓名07 | I17: 碩銘 | J17: 廠務 | M17: 2001-09-01 | N17: 2001-09-01 | O17: 19 | P17: 25 | Q17: 0.33 | R17: 0.67 | S17: 0 | T17: 16 | U17: 9 | V17: 25 | W17: 0.00 | X17: 16.00 | Y17: 8.33 | Z17: 24.33 | AB17: 0 | AC17: 0 | AD17: 0 | AE17: 0 | AF17: 0
A18: 15 | B18: 5 | C18: 15 | F18: NO08 | G18: 姓名08 | I18: 碩銘 | J18: 廠務 | M18: 2001-09-01 | N18: 2001-09-01 | O18: 19 | P18: 25 | Q18: 0.33 | R18: 0.67 | S18: 0 | T18: 16 | U18: 9 | V18: 25 | W18: 0.00 | X18: 16.00 | Y18: 8.33 | Z18: 24.33 | AB18: 0 | AC18: 0 | AD18: 0 | AE18: 0 | AF18: 0
A19: 15 | B19: 6 | C19: 15 | F19: NO09 | G19: 姓名09 | I19: 碩銘 | J19: 廠務 | M19: 2015-11-02 | N19: 2015-11-02 | O19: 5 | P19: 15 | Q19: 0.16 | R19: 0.84 | S19: 0 | T19: 11 | U19: 3 | V19: 14 | W19: 0.00 | X19: 11.71 | Y19: 2.46 | Z19: 14.17 | AB19: 0 | AC19: 0 | AD19: 0 | AE19: 0 | AF19: 0
A20: 15 | B20: 7 | C20: 15 | F20: NO10 | G20: 姓名10 | I20: 碩銘 | J20: 廠務 | M20: 2016-08-15 | N20: 2016-08-15 | O20: 4 | P20: 14 | Q20: 0.38 | R20: 0.62 | S20: 0 | T20: 8 | U20: 6 | V20: 14 | W20: 0.00 | X20: 8.69 | Y20: 5.31 | Z20: 14.00 | AB20: 0 | AC20: 0 | AD20: 0 | AE20: 0 | AF20: 0
A21: 15 | B21: 8 | C21: 15 | F21: NO11 | G21: 姓名11 | I21: 碩銘 | J21: 廠務 | M21: 2017-12-04 | N21: 2017-12-04 | O21: 3 | P21: 14 | Q21: 0.08 | R21: 0.92 | S21: 0 | T21: 9 | U21: 2 | V21: 11 | W21: 0.00 | X21: 9.25 | Y21: 1.05 | Z21: 10.30 | AB21: 0 | AC21: 0 | AD21: 0 | AE21: 0 | AF21: 0
A22: 15 | B22: 9 | C22: 15 | F22: NO12 | G22: 姓名12 | I22: 碩銘 | J22: 廠務 | M22: 2006-06-20 | N22: 2006-06-20 | O22: 14 | P22: 20 | Q22: 0.53 | R22: 0.47 | S22: 0 | T22: 8 | U22: 11 | V22: 19 | W22: 0.00 | X22: 8.92 | Y22: 10.61 | Z22: 19.53 | AB22: 0 | AC22: 0 | AD22: 0 | AE22: 0 | AF22: 0
A23: 16 | B23: 10 | C23: 16 | F23: NO13 | G23: 姓名13 | I23: 碩銘 | J23: 製造部 | M23: 2009-10-29 | N23: 2009-10-29 | O23: 11 | P23: 17 | Q23: 0.17 | R23: 0.83 | S23: 0 | T23: 13 | U23: 3 | V23: 16 | W23: 0.00 | X23: 13.20 | Y23: 2.97 | Z23: 16.17 | AB23: 0 | AC23: 0 | AD23: 0 | AE23: 0 | AF23: 0
A24: 17 | B24: 11 | C24: 17 | F24: NO14 | G24: 姓名14 | I24: 碩銘 | J24: 製造部 | M24: 2019-09-16 | N24: 2019-09-16 | O24: 1 | P24: 7 | Q24: 0.29 | R24: 0.71 | S24: 3 | T24: 0 | U24: 3 | V24: 6 | W24: 3.00 | X24: 0.00 | Y24: 2.04 | Z24: 5.04 | AB24: 3 | AC24: 0 | AD24: 0 | AE24: 0 | AF24: 0
A25: 18 | B25: 12 | C25: 18 | F25: NO15 | G25: 姓名15 | I25: 碩銘 | J25: 製造部 | M25: 2018-03-01 | N25: 2018-03-01 | O25: 2 | P25: 10 | Q25: 0.83 | R25: 0.17 | S25: 0 | T25: 1 | U25: 9 | V25: 10 | W25: 0.00 | X25: 1.17 | Y25: 8.33 | Z25: 9.50 | AB25: 0 | AC25: 0 | AD25: 0 | AE25: 0 | AF25: 0
A26: 19 | B26: 13 | C26: 19 | F26: NO16 | G26: 姓名16 | I26: 碩銘 | J26: 製造部 | M26: 2018-05-14 | N26: 2018-05-14 | O26: 2 | P26: 10 | Q26: 0.63 | R26: 0.37 | S26: 0 | T26: 2 | U26: 7 | V26: 9 | W26: 0.00 | X26: 2.58 | Y26: 6.32 | Z26: 8.90 | AB26: 0 | AC26: 0 | AD26: 0 | AE26: 0 | AF26: 0
A27: 20 | B27: 14 | C27: 20 | F27: NO17 | G27: 姓名17 | I27: 碩銘 | J27: 製造部 | M27: 2018-07-15 | N27: 2018-07-15 | O27: 2 | P27: 10 | Q27: 0.46 | R27: 0.54 | S27: 0 | T27: 3 | U27: 5 | V27: 8 | W27: 0.00 | X27: 3.76 | Y27: 4.62 | Z27: 8.38 | AB27: 0 | AC27: 0 | AD27: 0 | AE27: 0 | AF27: 0
A28: 21 | B28: 15 | C28: 21 | F28: NO18 | G28: 姓名18 | I28: 碩銘 | J28: 製造部 | M28: 2019-03-05 | N28: 2019-03-05 | O28: 1 | P28: 7 | Q28: 0.82 | R28: 0.18 | S28: 1.06 | T28: 0 | U28: 6 | V28: 7.06 | W28: 1.06 | X28: 0.00 | Y28: 5.76 | Z28: 6.82 | AB28: 1.06 | AC28: 1.94 | AD28: 1.06 | AE28: 0 | AF28: 0
A29: 22 | B29: 16 | C29: 22 | F29: NO19 | G29: 姓名19 | I29: 碩銘 | J29: 製造部 | M29: 2019-04-15 | N29: 2019-04-15 | O29: 1 | P29: 7 | Q29: 0.71 | R29: 0.29 | S29: 1.73 | T29: 0 | U29: 5 | V29: 6.73 | W29: 1.73 | X29: 0.00 | Y29: 4.98 | Z29: 6.71 | AB29: 1.73 | AC29: 1.27 | AD29: 1.73 | AE29: 0 | AF29: 0
A30: 23 | B30: 17 | C30: 23 | F30: NO20 | G30: 姓名20 | I30: 碩銘 | J30: 製造部 | M30: 2020-01-06 | N30: 2020-01-06 | O30: 0 | P30: 0 | Q30: 0.99 | R30: 0.01 | S30: 2.92 | T30: 0 | U30: 0 | V30: 2.92 | W30: 2.92 | X30: 0.00 | Y30: 0.00 | Z30: 2.92 | AB30: 2.92 | AC30: 0 | AD30: 0 | AE30: 2.92 | AF30: 0.08
A31: 24 | B31: 18 | C31: 24 | F31: NO21 | G31: 姓名21 | I31: 碩銘 | J31: 製造部 | M31: 2020-04-17 | N31: 2020-04-17 | O31: 0 | P31: 0 | Q31: 0.71 | R31: 0.29 | S31: 1.23 | T31: 0 | U31: 0 | V31: 1.23 | W31: 1.23 | X31: 0.00 | Y31: 0.00 | Z31: 1.23 | AB31: 1.23 | AC31: 0 | AD31: 0 | AE31: 1.23 | AF31: 1.77
A32: 25 | B32: 19 | C32: 25 | F32: NO22 | G32: 姓名22 | I32: 碩銘 | J32: 製造部 | M32: 2020-06-18 | N32: 2020-06-18 | O32: 0 | P32: 0 | Q32: 0.54 | R32: 0.46 | S32: 0.22 | T32: 0 | U32: 0 | V32: 0.22 | W32: 0.22 | X32: 0.00 | Y32: 0.00 | Z32: 0.22 | AB32: 0.22 | AC32: 0 | AD32: 0 | AE32: 0.22 | AF32: 2.78
A33: 26 | B33: 20 | C33: 26
A34: 27 | B34: 21 | C34: 27
A35: 28 | B35: 22 | C35: 28
A36: 29 | B36: 23 | C36: 29
A37: 30 | B37: 24 | C37: 30
A38: 30 | B38: 25 | C38: 30
A39: 30 | B39: 26 | C39: 30
A40: 30 | B40: 27 | C40: 30
A41: 30 | B41: 28 | C41: 30
A42: 30 | B42: 29 | C42: 30
A43: 30 | B43: 30 | C43: 30
A44: 30 | B44: 31 | C44: 30
A45: 30 | B45: 32 | C45: 30
A46: 30 | B46: 33 | C46: 30
A47: 30 | B47: 34 | C47: 30
A48: 30 | B48: 35 | C48: 30
A49: 30 | B49: 36 | C49: 30
A50: 30 | B50: 37 | C50: 30
A51: 30 | B51: 38 | C51: 30
A52: 30 | B52: 39 | C52: 30
A53: 30 | B53: 40 | C53: 30
A54: 30 | B54: 41 | C54: 30
A55: 30 | B55: 42 | C55: 30
A56: 30 | B56: 43 | C56: 30
A57: 30 | B57: 44 | C57: 30
A58: 30 | B58: 45 | C58: 30
A59: 30 | B59: 46 | C59: 30

Sheet 統計表
C3: https://www.gisin.com.tw/ | H3: 試算日期 | I3: 年 | J3: 月 | K3: 日 | L3: <<輸入試算年度 | N3: 特休比例 | X3: 輸入後再按試算鈕 | Y3: 滿半年(未滿一年期間)
I4: 108 | J4: 12 | K4: 31 | L4: 周年制 | N4: 到職日 至 12/31 | O4: 1/1至 到職日 前一日 | P4: 曆年制試算(【到職日後】四捨五入進位至整數) | T4: 曆年制試算_原始比例
C5: 員工編號 | D5: 姓名 | E5: 性別 | F5: 公司 | G5: 部門 | H5: 職稱 | I5: 留職停薪 | J5: 到職日 | K5: 到職日 (留職) | L5: 到職周年 | M5: 年資特休 | P5: 滿半年 A | Q5: 到職日前 B | R5: 到職日後 C | S5: 年度天數 A+B+C+D | T5: 滿半年 A | U5: 到職日前 B | V5: 到職日後 C | W5: 年度天數 A+B+C+D | X5: 遞延 或 已結清 D | Y5: 108年度 | Z5: 年度 1/1前 | AA5: 108年度 1/1後 | AB5: 到職日後109年度前
C6: B0001 | D6: 黃炳銘 | H6: 董事長 | J6: 2012-05-01 | K6: 2012-05-01 | L6: 7 | M6: 15 | N6: 0.67 | O6: 0.33 | P6: 0 | Q6: 5 | R6: 10 | S6: 15 | T6: 0.00 | U6: 5.00 | V6: 10.00 | W6: 15.00 | X6: 0 | Y6: 0 | Z6: 0 | AA6: 3 | AB6: 0
C7: B0002 | D7: 邱見鴻 | H7: 總經理 | J7: 2012-05-01 | K7: 2012-05-01 | L7: 7 | M7: 15 | N7: 0.67 | O7: 0.33 | P7: 0 | Q7: 5 | R7: 10 | S7: 15 | T7: 0.00 | U7: 5.00 | V7: 10.00 | W7: 15.00 | X7: 0 | Y7: 0 | Z7: 0 | AA7: 3 | AB7: 0
C8: B0003 | D8: 李世偉 | H8: 協理 | J8: 2012-05-01 | K8: 2012-05-01 | L8: 7 | M8: 15 | N8: 0.67 | O8: 0.33 | P8: 0 | Q8: 5 | R8: 10 | S8: 15 | T8: 0.00 | U8: 5.00 | V8: 10.00 | W8: 15.00 | Y8: 0 | Z8: 0 | AA8: 3 | AB8: 0
C9: B0004 | D9: 曹曼健 | H9: 協理 | J9: 2012-05-01 | K9: 2012-05-01 | L9: 7 | M9: 15 | N9: 0.67 | O9: 0.33 | P9: 0 | Q9: 5 | R9: 10 | S9: 15 | T9: 0.00 | U9: 5.00 | V9: 10.00 | W9: 15.00 | Y9: 0 | Z9: 0 | AA9: 3 | AB9: 0
C10: B0005 | D10: 葉宜君 | H10: 副理 | J10: 2012-06-30 | K10: 2012-06-30 | L10: 7 | M10: 15 | N10: 0.50 | O10: 0.50 | P10: 0 | Q10: 7 | R10: 8 | S10: 15 | T10: 0.00 | U10: 7.46 | V10: 7.54 | W10: 15.00 | Y10: 0 | Z10: 0 | AA10: 3 | AB10: 0
C11: B0006 | D11: 陳毅明 | H11: 處長 | J11: 2012-12-01 | K11: 2012-12-01 | L11: 7 | M11: 15 | N11: 0.08 | O11: 0.92 | P11: 0 | Q11: 14 | R11: 1 | S11: 15 | T11: 0.00 | U11: 13.75 | V11: 1.25 | W11: 15.00 | Y11: 0 | Z11: 0 | AA11: 3 | AB11: 0
C12: B0007 | D12: 余聖宏 | H12: 副理 | J12: 2012-12-24 | K12: 2012-12-24 | L12: 7 | M12: 15 | N12: 0.02 | O12: 0.98 | P12: 0 | Q12: 15 | R12: 0 | S12: 15 | T12: 0.00 | U12: 14.68 | V12: 0.32 | W12: 15.00 | Y12: 0 | Z12: 0 | AA12: 3 | AB12: 0
C13: B0015 | D13: 劉俊賢 | H13: 主任 | J13: 2012-12-17 | K13: 2012-12-17 | L13: 7 | M13: 15 | N13: 0.04 | O13: 0.96 | P13: 0 | Q13: 14 | R13: 1 | S13: 15 | T13: 0.00 | U13: 14.40 | V13: 0.60 | W13: 15.00 | Y13: 0 | Z13: 0 | AA13: 3 | AB13: 0
C14: B0017 | D14: 梁定康 | H14: 經理 | J14: 2013-01-10 | K14: 2013-01-10 | L14: 6 | M14: 15 | N14: 0.98 | O14: 0.02 | P14: 0 | Q14: 0 | R14: 15 | S14: 15 | T14: 0.00 | U14: 0.36 | V14: 14.64 | W14: 15.00 | Y14: 0 | Z14: 0 | AA14: 3 | AB14: 0
C15: b0019 | D15: 陳雅婷 | H15: 財務部 主任 | J15: 2013-01-05 | K15: 2013-01-05 | L15: 6 | M15: 15 | N15: 0.99 | O15: 0.01 | P15: 0 | Q15: 0 | R15: 15 | S15: 15 | T15: 0.00 | U15: 0.16 | V15: 14.84 | W15: 15.00 | Y15: 0 | Z15: 0 | AA15: 3 | AB15: 0
C16: B0021 | D16: 朱博文 | H16: 工務部 主任 | J16: 2013-02-18 | K16: 2013-02-18 | L16: 6 | M16: 15 | N16: 0.87 | O16: 0.13 | P16: 0 | Q16: 2 | R16: 13 | S16: 15 | T16: 0.00 | U16: 2.01 | V16: 12.99 | W16: 15.00 | Y16: 0 | Z16: 0 | AA16: 3 | AB16: 0
C17: B0029 | D17: 徐坤鈺 | H17: 處長 | J17: 2013-06-01 | K17: 2013-06-01 | L17: 6 | M17: 15 | N17: 0.58 | O17: 0.42 | P17: 0 | Q17: 6 | R17: 9 | S17: 15 | T17: 0.00 | U17: 6.25 | V17: 8.75 | W17: 15.00 | Y17: 0 | Z17: 0 | AA17: 3 | AB17: 0
C18: B0063 | D18: 賴俊豪 | H18: 機電部 主任 | J18: 2014-08-13 | K18: 2014-08-13 | L18: 5 | M18: 15 | N18: 0.38 | O18: 0.62 | P18: 0 | Q18: 9 | R18: 6 | S18: 15 | T18: 0.00 | U18: 8.62 | V18: 5.77 | W18: 14.39 | Y18: 0 | Z18: 0 | AA18: 3 | AB18: 0
C19: B0065 | D19: 吳泓毅 | H19: 主任 | J19: 2014-08-18 | K19: 2014-08-18 | L19: 5 | M19: 15 | N19: 0.37 | O19: 0.63 | P19: 0 | Q19: 9 | R19: 6 | S19: 15 | T19: 0.00 | U19: 8.81 | V19: 5.56 | W19: 14.37 | Y19: 0 | Z19: 0 | AA19: 3 | AB19: 0
C20: B0071 | D20: 洪勢雄 | H20: 主任 | J20: 2015-05-04 | K20: 2015-05-04 | L20: 4 | M20: 14 | N20: 0.66 | O20: 0.34 | P20: 0 | Q20: 5 | R20: 9 | S20: 14 | T20: 0.00 | U20: 4.78 | V20: 9.22 | W20: 14.00 | Y20: 0 | Z20: 0 | AA20: 3 | AB20: 0
C21: B0076 | D21: 鄭育閔 | H21: 代主任 | J21: 2015-08-01 | K21: 2015-08-01 | L21: 4 | M21: 14 | N21: 0.42 | O21: 0.58 | P21: 0 | Q21: 8 | R21: 6 | S21: 14 | T21: 0.00 | U21: 8.17 | V21: 5.83 | W21: 14.00 | Y21: 0 | Z21: 0 | AA21: 3 | AB21: 0
C22: B0093 | D22: 王雅儀 | H22: 工務部 採發科 主任 | J22: 2016-07-04 | K22: 2016-07-04 | L22: 3 | M22: 14 | N22: 0.49 | O22: 0.51 | P22: 0 | Q22: 5 | R22: 7 | S22: 12 | T22: 0.00 | U22: 5.08 | V22: 6.89 | W22: 11.97 | Y22: 0 | Z22: 0 | AA22: 3 | AB22: 0
C23: B0096 | D23: 賴進龍 | H23: 機電部 代主任 | J23: 2016-09-01 | K23: 2016-09-01 | L23: 3 | M23: 14 | N23: 0.33 | O23: 0.67 | P23: 0 | Q23: 7 | R23: 5 | S23: 12 | T23: 0.00 | U23: 6.67 | V23: 4.67 | W23: 11.34 | Y23: 0 | Z23: 0 | AA23: 3 | AB23: 0
C24: B0098 | D24: 周祐全 | H24: 副工程師 | J24: 2016-10-26 | K24: 2016-10-26 | L24: 3 | M24: 14 | N24: 0.18 | O24: 0.82 | P24: 0 | Q24: 8 | R24: 3 | S24: 11 | T24: 0.00 | U24: 8.17 | V24: 2.56 | W24: 10.73 | Y24: 0 | Z24: 0 | AA24: 3 | AB24: 0
C25: B0106 | D25: 吳振宇 | H25: 副工程師 | J25: 2017-02-16 | K25: 2017-02-16 | L25: 2 | M25: 10 | N25: 0.87 | O25: 0.13 | P25: 0 | Q25: 1 | R25: 9 | S25: 10 | T25: 0.00 | U25: 0.90 | V25: 8.72 | W25: 9.62 | Y25: 0 | Z25: 0 | AA25: 3 | AB25: 0
C26: B0109 | D26: 林貝怡 | H26: 管理部 二等專員 | J26: 2017-03-27 | K26: 2017-03-27 | L26: 2 | M26: 10 | N26: 0.76 | O26: 0.24 | P26: 0 | Q26: 2 | R26: 8 | S26: 10 | T26: 0.00 | U26: 1.66 | V26: 7.63 | W26: 9.29 | Y26: 0 | Z26: 0 | AA26: 3 | AB26: 0
C27: B0113 | D27: 陳和檍 | H27: 機電部 規劃科代主任 | J27: 2017-07-03 | K27: 2017-07-03 | L27: 2 | M27: 10 | N27: 0.49 | O27: 0.51 | P27: 0 | Q27: 4 | R27: 5 | S27: 9 | T27: 0.00 | U27: 3.54 | V27: 4.95 | W27: 8.49 | Y27: 0 | Z27: 0 | AA27: 3 | AB27: 0
C28: B0115 | D28: 鄭雅云 | H28: 工管科 二等專員 | J28: 2017-07-03 | K28: 2017-07-03 | L28: 2 | M28: 10 | N28: 0.49 | O28: 0.51 | P28: 0 | Q28: 4 | R28: 5 | S28: 9 | T28: 0.00 | U28: 3.54 | V28: 4.95 | W28: 8.49 | Y28: 0 | Z28: 0 | AA28: 3 | AB28: 0
C29: B0116 | D29: 李柏陞 | H29: 助理工程師 | J29: 2017-08-15 | K29: 2017-08-15 | L29: 2 | M29: 10 | N29: 0.38 | O29: 0.62 | P29: 0 | Q29: 4 | R29: 4 | S29: 8 | T29: 0.00 | U29: 4.35 | V29: 3.79 | W29: 8.14 | Y29: 0 | Z29: 0 | AA29: 3 | AB29: 0
C30: B0119 | D30: 鍾岳霖 | H30: 副工程師 | J30: 2017-11-01 | K30: 2017-11-01 | L30: 2 | M30: 10 | N30: 0.17 | O30: 0.83 | P30: 0 | Q30: 6 | R30: 2 | S30: 8 | T30: 0.00 | U30: 5.83 | V30: 1.67 | W30: 7.50 | Y30: 0 | Z30: 0 | AA30: 3 | AB30: 0
C31: B0132 | D31: 林子揚 | H31: 助理工程師 | J31: 2018-08-13 | K31: 2018-08-13 | L31: 1 | M31: 7 | N31: 0.38 | O31: 0.62 | P31: 3 | Q31: 0 | R31: 3 | S31: 6 | T31: 3.00 | U31: 0.00 | V31: 2.69 | W31: 5.69 | Y31: 3 | Z31: 0 | AA31: 3 | AB31: 0
C32: B0137 | D32: 顏睿呈 | H32: 助理工程師 | J32: 2018-10-24 | K32: 2018-10-24 | L32: 1 | M32: 7 | N32: 0.19 | O32: 0.81 | P32: 3 | Q32: 0 | R32: 1 | S32: 4 | T32: 3.00 | U32: 0.00 | V32: 1.32 | W32: 4.32 | Y32: 3 | Z32: 0 | AA32: 3 | AB32: 0
C33: B0139 | D33: 呂婉萍 | H33: 管理部 一等專員 | J33: 2018-11-19 | K33: 2018-11-19 | L33: 1 | M33: 7 | N33: 0.12 | O33: 0.88 | P33: 3 | Q33: 0 | R33: 1 | S33: 4 | T33: 3.00 | U33: 0.00 | V33: 0.82 | W33: 3.82 | Y33: 3 | Z33: 0 | AA33: 3 | AB33: 0
C34: B0140 | D34: 黃意云 | H34: 機電部 一等專員 | J34: 2018-11-19 | K34: 2018-11-19 | L34: 1 | M34: 7 | N34: 0.12 | O34: 0.88 | P34: 3 | Q34: 0 | R34: 1 | S34: 4 | T34: 3.00 | U34: 0.00 | V34: 0.82 | W34: 3.82 | Y34: 3 | Z34: 0 | AA34: 3 | AB34: 0
C35: B0149 | D35: 謝明翰 | H35: 助理工程師 | J35: 2019-03-25 | K35: 2019-03-25 | L35: 0 | M35: 0 | N35: 0.77 | O35: 0.23 | P35: 1.6 | Q35: 0 | R35: 0 | S35: 1.6 | T35: 1.60 | U35: 0.00 | V35: 0.00 | W35: 1.60 | Y35: 1.6 | Z35: 0 | AA35: 3 | AB35: 1.6
C36: B0152 | D36: 黃祺佑 | H36: 助理工程師 | J36: 2019-04-02 | K36: 2019-04-02 | L36: 0 | M36: 0 | N36: 0.75 | O36: 0.25 | P36: 1.5 | Q36: 0 | R36: 0 | S36: 1.5 | T36: 1.50 | U36: 0.00 | V36: 0.00 | W36: 1.50 | Y36: 1.5 | Z36: 0 | AA36: 3 | AB36: 1.5
C37: B0153 | D37: 金瑞傑 | H37: 助理工程師 | J37: 2019-04-01 | K37: 2019-04-01 | L37: 0 | M37: 0 | N37: 0.75 | O37: 0.25 | P37: 1.5 | Q37: 0 | R37: 0 | S37: 1.5 | T37: 1.50 | U37: 0.00 | V37: 0.00 | W37: 1.50 | Y37: 1.5 | Z37: 0 | AA37: 3 | AB37: 1.5
C38: B0158 | D38: 李奕霖 | H38: 機電部 助理工程師 | J38: 2019-05-16 | K38: 2019-05-16 | L38: 0 | M38: 0 | N38: 0.63 | O38: 0.37 | P38: 0.8 | Q38: 0 | R38: 0 | S38: 0.8 | T38: 0.80 | U38: 0.00 | V38: 0.00 | W38: 0.80 | Y38: 0.8 | Z38: 0 | AA38: 3 | AB38: 0.8
C39: B0160 | D39: 羅殷御 | H39: 副工程師 | J39: 2019-06-24 | K39: 2019-06-24 | L39: 0 | M39: 0 | N39: 0.52 | O39: 0.48 | P39: 0.1 | Q39: 0 | R39: 0 | S39: 0.1 | T39: 0.10 | U39: 0.00 | V39: 0.00 | W39: 0.10 | Y39: 0.1 | Z39: 0 | AA39: 3 | AB39: 0.1
C40: B0162 | D40: 陳怡頻 | H40: 財務部 一等專員 | J40: 2019-07-01 | K40: 2019-07-01 | L40: 0 | M40: 0 | N40: 0.50 | O40: 0.50 | P40: 0 | Q40: 0 | R40: 0 | S40: 0 | T40: 0.00 | U40: 0.00 | V40: 0.00 | W40: 0.00 | Y40: 0 | Z40: 0 | AA40: 3 | AB40: 0
C41: B0164 | D41: 戴芷沂 | H41: 財務部 一等專員 | J41: 2019-07-01 | K41: 2019-07-01 | L41: 0 | M41: 0 | N41: 0.50 | O41: 0.50 | P41: 0 | Q41: 0 | R41: 0 | S41: 0 | T41: 0.00 | U41: 0.00 | V41: 0.00 | W41: 0.00 | Y41: 0 | Z41: 0 | AA41: 3 | AB41: 0
C42: B0165 | D42: 李和霖 | H42: 助理工程師 | J42: 2019-08-01 | K42: 2019-08-01 | L42: 0 | M42: 0 | N42: 0.42 | O42: 0.58 | P42: 0 | Q42: 0 | R42: 0 | S42: 0 | T42: 0.00 | U42: 0.00 | V42: 0.00 | W42: 0.00 | Y42: 0 | Z42: 0 | AA42: 3 | AB42: 0
C43: B0167 | D43: 蔡承佑 | H43: 機電部 助理工程師 | J43: 2019-08-01 | K43: 2019-08-01 | L43: 0 | M43: 0 | N43: 0.42 | O43: 0.58 | P43: 0 | Q43: 0 | R43: 0 | S43: 0 | T43: 0.00 | U43: 0.00 | V43: 0.00 | W43: 0.00 | Y43: 0 | Z43: 0 | AA43: 3 | AB43: 0
C44: B0170 | D44: 吳俊男 | H44: 襄理 | J44: 2019-08-15 | K44: 2019-08-15 | L44: 0 | M44: 0 | N44: 0.38 | O44: 0.62 | P44: 0 | Q44: 0 | R44: 0 | S44: 0 | T44: 0.00 | U44: 0.00 | V44: 0.00 | W44: 0.00 | Y44: 0 | Z44: 0 | AA44: 3 | AB44: 0
C45: B0171 | D45: 王建智 | H45: 信然-執行長 | J45: 2019-08-15 | K45: 2019-08-15 | L45: 0 | M45: 0 | N45: 0.38 | O45: 0.62 | P45: 0 | Q45: 0 | R45: 0 | S45: 0 | T45: 0.00 | U45: 0.00 | V45: 0.00 | W45: 0.00 | Y45: 0 | Z45: 0 | AA45: 3 | AB45: 0
C46: B0172 | D46: 沈晉峰 | H46: 信然-工務助理 | J46: 2019-08-15 | K46: 2019-08-15 | L46: 0 | M46: 0 | N46: 0.38 | O46: 0.62 | P46: 0 | Q46: 0 | R46: 0 | S46: 0 | T46: 0.00 | U46: 0.00 | V46: 0.00 | W46: 0.00 | Y46: 0 | Z46: 0 | AA46: 3 | AB46: 0
C47: B0173 | D47: 林育薇 | H47: 助理工程師 | J47: 2019-08-26 | K47: 2019-08-26 | L47: 0 | M47: 0 | N47: 0.35 | O47: 0.65 | P47: 0 | Q47: 0 | R47: 0 | S47: 0 | T47: 0.00 | U47: 0.00 | V47: 0.00 | W47: 0.00 | Y47: 0 | Z47: 0 | AA47: 3 | AB47: 0
C48: B0174 | D48: 邢育寧 | H48: 安衛助理工程師 | J48: 2019-09-02 | K48: 2019-09-02 | L48: 0 | M48: 0 | N48: 0.33 | O48: 0.67 | P48: 0 | Q48: 0 | R48: 0 | S48: 0 | T48: 0.00 | U48: 0.00 | V48: 0.00 | W48: 0.00 | Y48: 0 | Z48: 0 | AA48: 3 | AB48: 0
C49: B0175 | D49: 朱峮佩 | H49: 工務部 工管科 一等專員 | J49: 2019-09-06 | K49: 2019-09-06 | L49: 0 | M49: 0 | N49: 0.32 | O49: 0.68 | P49: 0 | Q49: 0 | R49: 0 | S49: 0 | T49: 0.00 | U49: 0.00 | V49: 0.00 | W49: 0.00 | Y49: 0 | Z49: 0 | AA49: 3 | AB49: 0
C50: B0008 | D50: 蘇信宏 | H50: 副理 | J50: 2019-09-16 | K50: 2019-09-16 | L50: 0 | M50: 0 | N50: 0.29 | O50: 0.71 | P50: 0 | Q50: 0 | R50: 0 | S50: 0 | T50: 0.00 | U50: 0.00 | V50: 0.00 | W50: 0.00 | Y50: 0 | Z50: 0 | AA50: 3 | AB50: 0
C51: B0178 | D51: 范竣翔 | H51: 助理工程師 | J51: 2019-09-23 | K51: 2019-09-23 | L51: 0 | M51: 0 | N51: 0.27 | O51: 0.73 | P51: 0 | Q51: 0 | R51: 0 | S51: 0 | T51: 0.00 | U51: 0.00 | V51: 0.00 | W51: 0.00 | Y51: 0 | Z51: 0 | AA51: 3 | AB51: 0
C52: B0179 | D52: 劉淑玲 | H52: 管理部 一等專員 | J52: 2019-09-25 | K52: 2019-09-25 | L52: 0 | M52: 0 | N52: 0.27 | O52: 0.73 | P52: 0 | Q52: 0 | R52: 0 | S52: 0 | T52: 0.00 | U52: 0.00 | V52: 0.00 | W52: 0.00 | Y52: 0 | Z52: 0 | AA52: 3 | AB52: 0
C53: B0180 | D53: 林暉典 | H53: 助理工程師 | J53: 2019-10-17 | K53: 2019-10-17 | L53: 0 | M53: 0 | N53: 0.21 | O53: 0.79 | P53: 0 | Q53: 0 | R53: 0 | S53: 0 | T53: 0.00 | U53: 0.00 | V53: 0.00 | W53: 0.00 | Y53: 0 | Z53: 0 | AA53: 3 | AB53: 0
C54: B0182 | D54: 曾宏語 | H54: 助理工程師 | J54: 2019-11-01 | K54: 2019-11-01 | L54: 0 | M54: 0 | N54: 0.17 | O54: 0.83 | P54: 0 | Q54: 0 | R54: 0 | S54: 0 | T54: 0.00 | U54: 0.00 | V54: 0.00 | W54: 0.00 | Y54: 0 | Z54: 0 | AA54: 3 | AB54: 0
C55: B0185 | D55: 駱介文 | H55: 機電部 助理工程師 | J55: 2019-11-01 | K55: 2019-11-01 | L55: 0 | M55: 0 | N55: 0.17 | O55: 0.83 | P55: 0 | Q55: 0 | R55: 0 | S55: 0 | T55: 0.00 | U55: 0.00 | V55: 0.00 | W55: 0.00 | Y55: 0 | Z55: 0 | AA55: 3 | AB55: 0
C56: B0186 | D56: 王榮逢 | H56: 機電部 助理工程師 | J56: 2019-11-01 | K56: 2019-11-01 | L56: 0 | M56: 0 | N56: 0.17 | O56: 0.83 | P56: 0 | Q56: 0 | R56: 0 | S56: 0 | T56: 0.00 | U56: 0.00 | V56: 0.00 | W56: 0.00 | Y56: 0 | Z56: 0 | AA56: 3 | AB56: 0
C57: B0187 | D57: 施羿彤 | H57: 規劃科 一等專員 | J57: 2019-11-21 | K57: 2019-11-21 | L57: 0 | M57: 0 | N57: 0.11 | O57: 0.89 | P57: 0 | Q57: 0 | R57: 0 | S57: 0 | T57: 0.00 | U57: 0.00 | V57: 0.00 | W57: 0.00 | Y57: 0 | Z57: 0 | AA57: 3 | AB57: 0
C58: B0188 | D58: 陳姿蓉 | H58: 信泰誠-協理 | J58: 2019-11-21 | K58: 2019-11-21 | L58: 0 | M58: 0 | N58: 0.11 | O58: 0.89 | P58: 0 | Q58: 0 | R58: 0 | S58: 0 | T58: 0.00 | U58: 0.00 | V58: 0.00 | W58: 0.00 | Y58: 0 | Z58: 0 | AA58: 3 | AB58: 0
C59: B0189 | D59: 吳泰樺 | H59: 機電部 副工程師 | J59: 2019-12-02 | K59: 2019-12-02 | L59: 0 | M59: 0 | N59: 0.08 | O59: 0.92 | P59: 0 | Q59: 0 | R59: 0 | S59: 0 | T59: 0.00 | U59: 0.00 | V59: 0.00 | W59: 0.00 | Y59: 0 | Z59: 0 | AA59: 3 | AB59: 0
C60: B0191 | D60: 蔡冠宇 | H60: 助理工程師 | J60: 2019-12-05 | K60: 2019-12-05 | L60: 0 | M60: 0 | N60: 0.07 | O60: 0.93 | P60: 0 | Q60: 0 | R60: 0 | S60: 0 | T60: 0.00 | U60: 0.00 | V60: 0.00 | W60: 0.00 | Y60: 0 | Z60: 0 | AA60: 3 | AB60: 0
C61: B0192 | D61: 黃文星 | H61: 助理工程師 | J61: 2019-12-20 | K61: 2019-12-20 | L61: 0 | M61: 0 | N61: 0.03 | O61: 0.97 | P61: 0 | Q61: 0 | R61: 0 | S61: 0 | T61: 0.00 | U61: 0.00 | V61: 0.00 | W61: 0.00 | Y61: 0 | Z61: 0 | AA61: 3 | AB61: 0

Sheet Sheet1
B2: 行使特別休假權利：
A3: 一、 | B3: 以勞工受僱當日起算，每一週年之期間」，所謂「年度終結」，可由雙方協商「受僱當日起算之每一週年」為何
B4: 勞工申請留職停薪時，計算特休的「受僱當日」已然變動，其行使期間的「每一週年」自得有所不同
B5: （例如：1月1日到職勞工，申請留職停薪1年6個月，其週年制特休規範之受僱當日會變動為7月1日，一週年為當年7月1日至翌年6月30日）。
